Workbook

Sheet 1. Utility_Info_
AB1: Algoma Power Inc.
AB2: Atikokan Hydro Inc.
AB3: Attawapiskat Power Corporation
AB4: Bluewater Power Distribution Corp.
AB5: Brant County Power
AB6: Brantford Power Inc.
AB7: Burlington Hydro Inc.
AB8: Cambridge and North Dumfries Hydro
AB9: Canadian Niagara Power Inc. – Eastern Ontario Power/Fort Erie/Port Colborne
AB10: Centre Wellington Hydro Ltd.
AB11: Chapleau Public Utilities Corporation
AB12: COLLUS Power Corp.
AB13: Cooperative Hydro Embrun Inc.
AB14: E.L.K. Energy Inc.
C15: Utility Name | D15: Alectra Utilities Corporation - Enersource Rate Zone | AB15: Enersource Hydro Mississauga Inc.
AB16: Entegrus Powerlines Inc.
C17: Assigned EB Number | D17: EB-2025-0252 | AB17: ENWIN Utilities Ltd.
AB18: Erie Thames Powerlines Corp.
C19: Name and Title | D19: Natalie Yeates,Director, Regulatory Affairs | AB19: Espanola Regional Hydro Distribution Corporation
AB20: Essex Powerlines Corporation
C21: Phone Number | D21: 416-617-1959 | AB21: Festival Hydro Inc.
AB22: Fort Albany Power Corporation
C23: Email Address | D23: natalie.yeates@alectrautilities.com | AB23: Fort Frances Power Corporation
AB24: Greater Sudbury Hydro Inc.
C25: Date | AB25: Grimsby Power Inc.
AB26: Guelph Hydro Electric Systems Inc.
C27: ICM Project | D27: 2019-Leaking Transformer Replacement Project - Overhead/Padmount/Vault | AB27: Haldimand County Hydro Inc.
AB28: Halton Hills Hydro Inc.
AB29: Hearst Power Distribution Co. Ltd.
A30: Note: Drop-down lists are shaded blue; Input cells are shaded green.
AB32: Horizon Utilities Corporation
AB33: Hydro 2000 Inc.
AB34: Hydro Hawkesbury Inc.
AB35: Hydro One Brampton Networks Inc.
AB36: Hydro One Networks Inc.
AB37: Hydro One Remote Communities Inc.
AB38: Hydro Ottawa Limited
AB39: Innisfil Hydro Dist. Systems Limited
AB40: Kashechewan Power Corporation
AB41: Kenora Hydro Electric Corporation Ltd.
AB42: Kingston Hydro Corporation
AB43: Kitchener-Wilmot Hydro Inc.
AB44: Lakefront Utilities Inc.
AB45: Lakeland Power Distribution Ltd.
AB46: London Hydro Inc.
AB47: Midland Power Utility Corporation
AB48: Milton Hydro Distribution Inc.
AB49: Newmarket – Tay Power Distribution Ltd.
AB50: Niagara Peninsula Energy Inc.
AB51: Niagara-on-the-Lake Hydro Inc.
AB52: Norfolk Power Distribution Ltd.
AB53: North Bay Hydro Distribution Limited
AB54: Northern Ontario Wires Inc.
AB55: Oakville Hydro Distribution Inc.
AB56: Orangeville Hydro Limited
AB57: Orillia Power Distribution Corp.
AB58: Oshawa PUC Networks Inc.
AB59: Ottawa River Power Corporation
AB60: Parry Sound Power Corporation
AB61: Peterborough Distribution Inc.
AB62: PowerStream Inc.
AB63: PUC Distribution Inc.
AB64: Renfrew Hydro Inc.
AB65: Rideau St. Lawrence Distribution Inc.
AB66: St. Thomas Energy Inc.
AB67: Sioux Lookout Hydro Inc.
AB68: Thunder Bay Hydro Electricity Distribution
AB69: Tillsonburg Hydro Inc.
AB70: Toronto Hydro-Electric System Limited
AB71: Veridian Connections Inc.
AB72: Wasaga Distribution Inc.
AB73: Waterloo North Hydro Inc.
AB74: Welland Hydro Electric System Corp.
AB75: Wellington North Power Inc.
AB76: West Coast Huron Energy Inc.
AB77: Westario Power Inc.
AB78: Whitby Hydro Electric Corporation
AB79: Woodstock Hydro Services Inc.
AB81: Alectra Utilities Corporation - PowerStream Rate Zone
AB82: Alectra Utilities Corporation - Brampton Rate Zone
AB83: Alectra Utilities Corporation - Enersource Rate Zone
AB84: Alectra Utilities Corporation - Horizon Rate Zone
AB85: Alectra Utilities Corporation - Guelph Rate Zone

Sheet 2. ICM_Costs
G18: 2019 | I18: 2015 | K18: Total
B19: Sheet 2: ICM Capital Cost Data | G19: Audited Actual | I19: Forecast
B39: 1 | C39: Capital Costs
E40: Asset Type
C41: SYSTEM ACCESS | E41: Asset type must be selected to enable calculations | G41: =IF(ISBLANK(G19),"",G19) -> Audited Actual | I41: =IF(ISBLANK(I19),"",I19) -> Forecast
K42: =SUM(G42,I42) -> 0
K44: =SUM(G44,I44) -> 0
K46: =SUM(G46,I46) -> 0
K48: =SUM(G48,I48) -> 0
K50: =SUM(G50,I50) -> 0
K52: 0
K54: 0
K56: 0
K58: 0
K60: 0
C62: Total System Access | G62: =SUM(G42,G44,G46,G48,G50,G52,G54,G56,G58,G60) -> 0 | I62: =SUM(I42,I44,I46,I48,I50,I52,I54,I56,I58,I60) -> 0 | K62: =SUM(K42,K44,K46,K48,K50,K52,K54,K56,K58,K60) -> 0
E64: =E40 -> Asset Type
C65: SYSTEM RENEWAL | G65: =G41 -> Audited Actual | I65: =I41 -> Forecast
E66: OH Swtch & Cpctrs | G66: 91095.4476 | K66: =SUM(G66,I66) -> 91095.4476
E68: Wood Poles | G68: 556694.402 | K68: =SUM(G68,I68) -> 556694.402
E70: OH Transformers | G70: 101217.164 | K70: =SUM(G70,I70) -> 101217.164
E72: OH Prim Cond & Dev | G72: 151825.746 | K72: =SUM(G72,I72) -> 151825.746
E74: OH Sec Cond & Dev | G74: 50608.582 | K74: =SUM(G74,I74) -> 50608.582
E76: UG Transformers | G76: 2794878.904 | K76: =SUM(G76,I76) -> 2794878.904
E78: UG Prim XLPE TR | G78: 379725.0122 | K78: =SUM(G78,I78) -> 379725.0122
E80: UG Sec - Dir Buried | G80: 205045.0807 | K80: =SUM(G80,I80) -> 205045.0807
E82: UG Sec In Duct/Svs | G82: 174679.9315 | K82: =SUM(G82,I82) -> 174679.9315
K84: 0
C86: Total System Renewal | G86: =SUM(G66,G68,G70,G72,G74,G76,G78,G80,G82,G84) -> 4505770.27 | I86: =SUM(I66,I68,I70,I72,I74,I76,I78,I80,I82,I84) -> 0 | K86: =SUM(K66,K68,K70,K72,K74,K76,K78,K80,K82,K84) -> 4505770.27
E88: =E64 -> Asset Type
C89: SYSTEM SERVICE | G89: =G65 -> Audited Actual | I89: =I65 -> Forecast
K90: =SUM(G90,I90) -> 0
K92: =SUM(G92,I92) -> 0
K94: =SUM(G94,I94) -> 0
K96: =SUM(G96,I96) -> 0
K98: =SUM(G98,I98) -> 0
K100: =SUM(G100,I100) -> 0
K102: =SUM(G102,I102) -> 0
K104: =SUM(G104,I104) -> 0
K106: =SUM(G106,I106) -> 0
K108: 0
C110: Total System Service | G110: =SUM(G90,G92,G94,G96,G98,G100,G102,G104,G106,G108) -> 0 | I110: =SUM(I90,I92,I94,I96,I98,I100,I102,I104,I106,I108) -> 0 | K110: =SUM(K90,K92,K94,K96,K98,K100,K102,K104,K106,K108) -> 0
E112: =E88 -> Asset Type
C113: GENERAL PLANT | G113: Audited Actual | I113: =I89 -> Forecast
K115: =SUM(G115,I115) -> 0
K117: =SUM(G117,I117) -> 0
K119: =SUM(G119,I119) -> 0
K121: =SUM(G121,I121) -> 0
K123: =SUM(G123,I123) -> 0
K125: =SUM(G125,I125) -> 0
K127: =SUM(G127,I127) -> 0
K129: =SUM(G129,I129) -> 0
K131: =SUM(G131,I131) -> 0
K133: 0
C135: Total General Plant | G135: =SUM(G115,G117,G119,G121,G123,G125,G127,G129,G131,G133) -> 0 | I135: =SUM(I115,I117,I119,I121,I123,I125,I127,I129,I131,I133) -> 0 | K135: =SUM(K115,K117,K119,K121,K123,K125,K127,K129,K131,K133) -> 0
E137: =E112 -> Asset Type
G138: Audited Actual | I138: =I113 -> Forecast
K140: =SUM(G140,I140) -> 0
K142: =SUM(G142,I142) -> 0
K144: =SUM(G144,I144) -> 0
K146: =SUM(G146,I146) -> 0
K148: =SUM(G148,I148) -> 0
K150: =SUM(G150,I150) -> 0
K152: =SUM(G152,I152) -> 0
K154: =SUM(G154,I154) -> 0
K156: =SUM(G156,I156) -> 0
K158: 0
C160: Total | F160: =SUM(F140,F142,F144,F146,F148,F150,F152,F154,F156,F158) -> 0 | G160: 0 | I160: =SUM(I140,I142,I144,I146,I148,I150,I152,I154,I156,I158) -> 0 | K160: =SUM(K140,K142,K144,K146,K148,K150,K152,K154,K156,K158) -> 0
C162: Total Capital Costs Related to Incremental Capital Projects (ICP) | G162: =SUM(G62,G86,G110,G135,G160) -> 4505770.27 | I162: =SUM(I62,I86,I110,I135,I160) -> 0 | K162: =SUM(K62,K86,K110,K135,K160) -> 4505770.27
E164: =E137 -> Asset Type
C165: OTHER CAPITAL COST | G165: Audited Actual | I165: =I138 -> Forecast
C167: A | K167: =SUM(G167,I167) -> 0
C169: B | K169: =SUM(G169,I169) -> 0
C171: C | K171: =SUM(G171,I171) -> 0
C173: Total Other Capital Costs | G173: =SUM(G167,G169,G171) -> 0 | I173: =SUM(I167,I169,I171) -> 0 | K173: =SUM(K167,K169,K171) -> 0
C175: Total ICM Capital Costs | G175: =G162+G173 -> 4505770.27 | I175: =I162+I173 -> 0 | K175: =K162+K173 -> 4505770.27
B178: 2 | C178: Aggregated ICM Costs by Category
C180: Asset Account | D180: Capital | E180: Account
C182: 120227 | D182: OH Swtch & Cpctrs | E182: 1835 | G182: =SUMIF($E$42:$E$171,$D182,G$42:G$171) -> 91095.4476 | I182: =SUMIF($E$42:$E$171,$D182,I$42:I$171) -> 0 | K182: =SUM(G182:J182) -> 91095.4476
C184: 120223 | D184: Concrete Poles | E184: 1830 | G184: =SUMIF($E$42:$E$171,$D184,G$42:G$171) -> 0 | I184: =SUMIF($E$42:$E$171,$D184,I$42:I$171) -> 0 | K184: =SUM(G184:J184) -> 0
C186: 120221 | D186: Wood Poles | E186: 1830 | G186: =SUMIF($E$42:$E$171,$D186,G$42:G$171) -> 556694.402 | I186: =SUMIF($E$42:$E$171,$D186,I$42:I$171) -> 0 | K186: =SUM(G186:J186) -> 556694.402
C188: 120225 | D188: OH Transformers | E188: 1850 | G188: =SUMIF($E$42:$E$171,$D188,G$42:G$171) -> 101217.164 | I188: =SUMIF($E$42:$E$171,$D188,I$42:I$171) -> 0 | K188: =SUM(G188:J188) -> 101217.164
C190: 120224 | D190: OH Prim Cond & Dev | E190: 1835 | G190: =SUMIF($E$42:$E$171,$D190,G$42:G$171) -> 151825.746 | I190: =SUMIF($E$42:$E$171,$D190,I$42:I$171) -> 0 | K190: =SUM(G190:J190) -> 151825.746
C192: 120226 | D192: OH Sec Cond & Dev | E192: 1855 | G192: =SUMIF($E$42:$E$171,$D192,G$42:G$171) -> 50608.582 | I192: =SUMIF($E$42:$E$171,$D192,I$42:I$171) -> 0 | K192: =SUM(G192:J192) -> 50608.582
C194: 120243 | D194: UG Transformers | E194: 1850 | G194: =SUMIF($E$42:$E$171,$D194,G$42:G$171) -> 2794878.904 | I194: =SUMIF($E$42:$E$171,$D194,I$42:I$171) -> 0 | K194: =SUM(G194:J194) -> 2794878.904
C196: 120245 | D196: UG Conduit | E196: 1840 | G196: =SUMIF($E$42:$E$171,$D196,G$42:G$171) -> 0 | I196: =SUMIF($E$42:$E$171,$D196,I$42:I$171) -> 0 | K196: =SUM(G196:J196) -> 0
C198: 120241.XLPETR | D198: UG Prim XLPE TR | E198: 1845 | G198: =SUMIF($E$42:$E$171,$D198,G$42:G$171) -> 379725.0122 | I198: =SUMIF($E$42:$E$171,$D198,I$42:I$171) -> 0 | K198: =SUM(G198:J198) -> 379725.0122
C200: 120242.DB | D200: UG Sec - Dir Buried | E200: 1845 | G200: =SUMIF($E$42:$E$171,$D200,G$42:G$171) -> 205045.0807 | I200: =SUMIF($E$42:$E$171,$D200,I$42:I$171) -> 0 | K200: =SUM(G200:J200) -> 205045.0807
C202: 120242.IDSERV | D202: UG Sec In Duct/Svs | E202: 1845 | G202: =SUMIF($E$42:$E$171,$D202,G$42:G$171) -> 174679.9315 | I202: 0 | K202: 174679.9315
C204: 120248 | D204: Air Insulated Switchgear | E204: 1845 | G204: 0 | I204: 0 | K204: 0
C206: 120249 | D206: Solid Dielectric Switchgear | E206: 1845 | G206: 0 | I206: 0 | K206: 0
C208: 120244 | D208: UG Cable Injection | E208: 1845 | G208: 0 | I208: 0 | K208: 0
C210: 120063.MS | D210: MS Integrated P&C Systems | E210: 1820 | G210: 0 | I210: 0 | K210: 0
C212: 120021.MS | D212: MS Building Improvements | E212: 1820 | G212: 0 | I212: 0 | K212: 0
C214: 130104 | D214: Capital Contributions Paid | E214: 1609 | G214: 0 | I214: 0 | K214: 0
D219: Total Capital Costs | G219: =SUM(G182:G215) -> 4505770.27 | I219: =SUM(I182:I215) -> 0 | K219: =SUM(K182:K214) -> 4505770.27
G220: =IF(G219=G175," ","Error") ->  | I220: =IF(I219=I175,"","Error") ->  | K220: =IF(K219=K175,"","Error") -> 

Sheet 3. Cost_of_Service_Parameters
B17: Sheet 3: Parameters and Rates
G19: 2019 | I19: 2020 | K19: 2021 | M19: 2022 | O19: 2023 | Q19: 2024 | S19: 2025 | U19: 2026
B20: Cost of Capital
C21: Capital Structure
D22: Deemed Short-term Debt Capitalization | G22: 0.04 | I22: 0.04 | K22: 0.04 | M22: 0.04 | O22: 0.04 | Q22: 0.04 | S22: 0.04 | U22: 0.04
D23: Deemed Long-term Debt Capitalization | G23: =60%-G22 -> 0.56 | I23: =G23-(I22-G22) -> 0.56 | K23: =I23-(K22-I22) -> 0.56 | M23: =K23-(M22-K22) -> 0.56 | O23: =M23-(O22-M22) -> 0.56 | Q23: =O23-(Q22-O22) -> 0.56 | S23: =Q23-(S22-Q22) -> 0.56 | U23: =S23-(U22-S22) -> 0.56
D24: Deemed Equity Capitalization | G24: =100%-G23-G25-G22 -> 0.4 | I24: =100%-I23-I25-I22 -> 0.4 | K24: =100%-K23-K25-K22 -> 0.4 | M24: =100%-M23-M25-M22 -> 0.4 | O24: =100%-O23-O25-O22 -> 0.4 | Q24: =100%-Q23-Q25-Q22 -> 0.4 | S24: =100%-S23-S25-S22 -> 0.4 | U24: =100%-U23-U25-U22 -> 0.4
D25: Preferred Shares
C26: Total | G26: =SUM(G22:G25) -> 1 | I26: =SUM(I22:I25) -> 1 | K26: =SUM(K22:K25) -> 1 | M26: =SUM(M22:M25) -> 1 | O26: =SUM(O22:O25) -> 1 | Q26: =SUM(Q22:Q25) -> 1 | S26: =SUM(S22:S25) -> 1 | U26: =SUM(U22:U25) -> 1
C28: Cost of Capital Parameters
D29: Deemed Short-term Debt Rate | G29: 0.0208 | I29: 0.0216 | K29: 0.0208 | M29: 0.0208 | O29: 0.0208 | Q29: 0.0208 | S29: 0.0208 | U29: 0.0208
D30: Long-term Debt Rate (actual/embedded/deemed)1 | G30: 0.050914 | I30: 0.0391 | K30: 0.050914 | M30: 0.050914 | O30: 0.050914 | Q30: 0.050914 | S30: 0.050914 | U30: 0.050914
D31: Target Return on Equity (ROE) | G31: 0.0893 | I31: 0.0893 | K31: 0.0893 | M31: 0.0893 | O31: 0.0893 | Q31: 0.0893 | S31: 0.0893 | U31: 0.0893
D32: Return on Preferred Shares
C33: WACC | G33: =SUMPRODUCT(G22:G25,G29:G32) -> 0.06506384 | I33: =SUMPRODUCT(I22:I25,I29:I32) -> 0.05848 | K33: =SUMPRODUCT(K22:K25,K29:K32) -> 0.06506384 | M33: =SUMPRODUCT(M22:M25,M29:M32) -> 0.06506384 | O33: =SUMPRODUCT(O22:O25,O29:O32) -> 0.06506384 | Q33: =SUMPRODUCT(Q22:Q25,Q29:Q32) -> 0.06506384 | S33: =SUMPRODUCT(S22:S25,S29:S32) -> 0.06506384 | U33: =SUMPRODUCT(U22:U25,U29:U32) -> 0.06506384
B35: Working Capital Allowance
C36: Working Capital Allowance Rate | G36: 0.135 | I36: 0.135 | K36: 0.135 | M36: 0.135 | O36: 0.135 | Q36: 0.135 | S36: 0.135 | U36: 0.135
C37: (% of the sum of Cost of Power + controllable expenses)
B39: Taxes/PILs
C40: Aggregate Corporate Income Tax Rate | G40: 0.265 | I40: 0.265 | K40: 0.265 | M40: 0.265 | O40: 0.265 | Q40: 0.265 | S40: 0.265 | U40: 0.265
C41: Capital Tax (until July 1st, 2010) | G41: 0 | I41: 0 | K41: 0 | M41: 0 | O41: 0 | Q41: 0 | S41: 0 | U41: 0
B43: Depreciation Rates | E43: Account
B44: (expressed as expected useful life in years)
C45: OH Swtch & Cpctrs | E45: 1835 | G45: 38 | I45: 38 | K45: 38 | M45: 38 | O45: 38 | Q45: 38 | S45: 35 | U45: 35
C46: - rate (%) | G46: 0.02631578947 | I46: 0.02631578947 | K46: 0.02631578947 | M46: 0.02631578947 | O46: 0.02631578947 | Q46: 0.02631578947 | S46: 0.02857142857 | U46: 0.02857142857
C47: Concrete Poles | E47: 1830 | G47: 51 | I47: 51 | K47: 51 | M47: 51 | O47: 51 | Q47: 51 | S47: 60 | U47: 60
C48: - rate (%) | G48: 0.01960784314 | I48: 0.01960784314 | K48: 0.01960784314 | M48: 0.01960784314 | O48: 0.01960784314 | Q48: 0.01960784314 | S48: 0.01666666667 | U48: 0.01666666667
C49: Wood Poles | E49: 1830 | G49: 44 | I49: 44 | K49: 44 | M49: 44 | O49: 44 | Q49: 44 | S49: 45 | U49: 45
C50: - rate (%) | G50: 0.02272727273 | I50: 0.02272727273 | K50: 0.02272727273 | M50: 0.02272727273 | O50: 0.02272727273 | Q50: 0.02272727273 | S50: 0.02222222222 | U50: 0.02222222222
C51: OH Transformers | E51: 1850 | G51: 41 | I51: 41 | K51: 41 | M51: 41 | O51: 41 | Q51: 41 | S51: 45 | U51: 45
C52: - rate (%) | G52: 0.0243902439 | I52: 0.0243902439 | K52: 0.0243902439 | M52: 0.0243902439 | O52: 0.0243902439 | Q52: 0.0243902439 | S52: 0.02222222222 | U52: 0.02222222222
C53: OH Prim Cond & Dev | E53: 1835 | G53: 45 | I53: 45 | K53: 45 | M53: 45 | O53: 45 | Q53: 45 | S53: 50 | U53: 50
C54: - rate (%) | G54: 0.02222222222 | I54: 0.02222222222 | K54: 0.02222222222 | M54: 0.02222222222 | O54: 0.02222222222 | Q54: 0.02222222222 | S54: 0.02 | U54: 0.02
C55: OH Sec Cond & Dev | E55: 1855 | G55: 48 | I55: 48 | K55: 48 | M55: 48 | O55: 48 | Q55: 48 | S55: 50 | U55: 50
C56: - rate (%) | G56: 0.02083333333 | I56: 0.02083333333 | K56: 0.02083333333 | M56: 0.02083333333 | O56: 0.02083333333 | Q56: 0.02083333333 | S56: 0.02 | U56: 0.02
C57: UG Transformers | E57: 1850 | G57: 32 | I57: 32 | K57: 32 | M57: 32 | O57: 32 | Q57: 32 | S57: 30 | U57: 30
C58: - rate (%) | G58: 0.03125 | I58: 0.03125 | K58: 0.03125 | M58: 0.03125 | O58: 0.03125 | Q58: 0.03125 | S58: 0.03333333333 | U58: 0.03333333333
C59: UG Conduit | E59: 1840 | G59: 52 | I59: 52 | K59: 52 | M59: 52 | O59: 52 | Q59: 52 | S59: 60 | U59: 60
C60: - rate (%) | G60: 0.01923076923 | I60: 0.01923076923 | K60: 0.01923076923 | M60: 0.01923076923 | O60: 0.01923076923 | Q60: 0.01923076923 | S60: 0.01666666667 | U60: 0.01666666667
C61: UG Prim XLPE TR | E61: 1845 | G61: 38 | I61: 38 | K61: 38 | M61: 38 | O61: 38 | Q61: 38 | S61: 45 | U61: 45
C62: - rate (%) | G62: 0.02631578947 | I62: 0.02631578947 | K62: 0.02631578947 | M62: 0.02631578947 | O62: 0.02631578947 | Q62: 0.02631578947 | S62: 0.02222222222 | U62: 0.02222222222
C63: UG Sec - Dir Buried | E63: 1845 | G63: 31 | I63: 31 | K63: 31 | M63: 31 | O63: 31 | Q63: 31 | S63: 30 | U63: 30
C64: - rate (%) | G64: 0.03225806452 | I64: 0.03225806452 | K64: 0.03225806452 | M64: 0.03225806452 | O64: 0.03225806452 | Q64: 0.03225806452 | S64: 0.03333333333 | U64: 0.03333333333
C65: UG Sec In Duct/Svs | E65: 1845 | G65: 37 | I65: 37 | K65: 37 | M65: 37 | O65: 37 | Q65: 37 | S65: 40 | U65: 40
C66: - rate (%) | G66: 0.02702702703 | I66: 0.02702702703 | K66: 0.02702702703 | M66: 0.02702702703 | O66: 0.02702702703 | Q66: 0.02702702703 | S66: 0.025 | U66: 0.025
C67: Air Insulated Switchgear | E67: 1845 | G67: 39 | I67: 39 | K67: 39 | M67: 39 | O67: 39 | Q67: 39 | S67: 35 | U67: 35
C68: - rate (%) | G68: 0.02564102564 | I68: 0.02564102564 | K68: 0.02564102564 | M68: 0.02564102564 | O68: 0.02564102564 | Q68: 0.02564102564 | S68: 0.02857142857 | U68: 0.02857142857
C69: Solid Dielectric Switchgear | E69: 1845 | G69: 42 | I69: 42 | K69: 42 | M69: 42 | O69: 42 | Q69: 42 | S69: 45 | U69: 45
C70: - rate (%) | G70: 0.02380952381 | I70: 0.02380952381 | K70: 0.02380952381 | M70: 0.02380952381 | O70: 0.02380952381 | Q70: 0.02380952381 | S70: 0.02222222222 | U70: 0.02222222222
C71: UG Cable Injection | E71: 1845 | G71: 24 | I71: 24 | K71: 24 | M71: 24 | O71: 24 | Q71: 24 | S71: 20 | U71: 20
C72: - rate (%) | G72: 0.04166666667 | I72: 0.04166666667 | K72: 0.04166666667 | M72: 0.04166666667 | O72: 0.04166666667 | Q72: 0.04166666667 | S72: 0.05 | U72: 0.05
C73: MS Integrated P&C Systems | E73: 1820 | G73: 36 | I73: 36 | K73: 36 | M73: 36 | O73: 36 | Q73: 36 | S73: 15 | U73: 15
C74: - rate (%) | G74: 0.02777777778 | I74: 0.02777777778 | K74: 0.02777777778 | M74: 0.02777777778 | O74: 0.02777777778 | Q74: 0.02777777778 | S74: 0.06666666667 | U74: 0.06666666667
C75: MS Building Improvements | E75: 1820 | G75: 21 | I75: 21 | K75: 21 | M75: 21 | O75: 21 | Q75: 21 | S75: 25 | U75: 25
C76: - rate (%) | G76: 0.04761904762 | I76: 0.04761904762 | K76: 0.04761904762 | M76: 0.04761904762 | O76: 0.04761904762 | Q76: 0.04761904762 | S76: 0.04 | U76: 0.04
C77: Capital Contributions Paid | E77: 1609 | G77: 40 | I77: 40 | K77: 40 | M77: 40 | O77: 40 | Q77: 40 | S77: 40 | U77: 40
C78: - rate (%) | G78: =IF(G77=0,0,1/G77) -> 0.025 | I78: =IF(I77=0,0,1/I77) -> 0.025 | K78: =IF(K77=0,0,1/K77) -> 0.025 | M78: =IF(M77=0,0,1/M77) -> 0.025 | O78: =IF(O77=0,0,1/O77) -> 0.025 | Q78: =IF(Q77=0,0,1/Q77) -> 0.025 | S78: =IF(S77=0,0,1/S77) -> 0.025 | U78: =IF(U77=0,0,1/U77) -> 0.025
B82: CCA Rates
C83: OH Swtch & Cpctrs - CCA Class | G83: 47 | I83: 47 | K83: 47 | M83: 47 | O83: 47 | Q83: 47 | S83: 47 | U83: 47
C84: OH Swtch & Cpctrs - CCA Rate | G84: 0.08 | I84: 0.08 | K84: 0.08 | M84: 0.08 | O84: 0.08 | Q84: 0.08 | S84: 0.08 | U84: 0.08
C86: Concrete Poles - CCA Class | G86: 47 | I86: 47 | K86: 47 | M86: 47 | O86: 47 | Q86: 47 | S86: 47 | U86: 47
C87: Concrete Poles - CCA Rate | G87: 0.08 | I87: 0.08 | K87: 0.08 | M87: 0.08 | O87: 0.08 | Q87: 0.08 | S87: 0.08 | U87: 0.08
C89: Wood Poles - CCA Class | G89: 47 | I89: 47 | K89: 47 | M89: 47 | O89: 47 | Q89: 47 | S89: 47 | U89: 47
C90: Wood Poles - CCA Rate | G90: 0.08 | I90: 0.08 | K90: 0.08 | M90: 0.08 | O90: 0.08 | Q90: 0.08 | S90: 0.08 | U90: 0.08
C92: OH Transformers - CCA Class | G92: 47 | I92: 47 | K92: 47 | M92: 47 | O92: 47 | Q92: 47 | S92: 47 | U92: 47
C93: OH Transformers - CCA Rate | G93: 0.08 | I93: 0.08 | K93: 0.08 | M93: 0.08 | O93: 0.08 | Q93: 0.08 | S93: 0.08 | U93: 0.08
C95: OH Prim Cond & Dev - CCA Class | G95: 47 | I95: 47 | K95: 47 | M95: 47 | O95: 47 | Q95: 47 | S95: 47 | U95: 47
C96: OH Prim Cond & Dev - CCA Rate | G96: 0.08 | I96: 0.08 | K96: 0.08 | M96: 0.08 | O96: 0.08 | Q96: 0.08 | S96: 0.08 | U96: 0.08
C98: OH Sec Cond & Dev - CCA Class | G98: 47 | I98: 47 | K98: 47 | M98: 47 | O98: 47 | Q98: 47 | S98: 47 | U98: 47
C99: OH Sec Cond & Dev - CCA Rate | G99: 0.08 | I99: 0.08 | K99: 0.08 | M99: 0.08 | O99: 0.08 | Q99: 0.08 | S99: 0.08 | U99: 0.08
C101: UG Transformers - CCA Class | G101: 47 | I101: 47 | K101: 47 | M101: 47 | O101: 47 | Q101: 47 | S101: 47 | U101: 47
C102: UG Transformers - CCA Rate | G102: 0.08 | I102: 0.08 | K102: 0.08 | M102: 0.08 | O102: 0.08 | Q102: 0.08 | S102: 0.08 | U102: 0.08
C104: OH Services - CCA Class | G104: 47 | I104: 47 | K104: 47 | M104: 47 | O104: 47 | Q104: 47 | S104: 47 | U104: 47
C105: OH Services - CCA Rate | G105: 0.08 | I105: 0.08 | K105: 0.08 | M105: 0.08 | O105: 0.08 | Q105: 0.08 | S105: 0.08 | U105: 0.08
C107: UG Conduit - CCA Class | G107: 47 | I107: 47 | K107: 47 | M107: 47 | O107: 47 | Q107: 47 | S107: 47 | U107: 47
C108: UG Conduit - CCA Rate | G108: 0.08 | I108: 0.08 | K108: 0.08 | M108: 0.08 | O108: 0.08 | Q108: 0.08 | S108: 0.08 | U108: 0.08
C110: UG Prim XLPE TR - CCA Class | G110: 47 | I110: 47 | K110: 47 | M110: 47 | O110: 47 | Q110: 47 | S110: 47 | U110: 47
C111: UG Prim XLPE TR - CCA Rate | G111: 0.08 | I111: 0.08 | K111: 0.08 | M111: 0.08 | O111: 0.08 | Q111: 0.08 | S111: 0.08 | U111: 0.08
C113: UG Sec - Dir Buried - CCA Class | G113: 47 | I113: 47 | K113: 47 | M113: 47 | O113: 47 | Q113: 47 | S113: 47 | U113: 47
C114: UG Sec - Dir Buried - CCA Rate | G114: 0.08 | I114: 0.08 | K114: 0.08 | M114: 0.08 | O114: 0.08 | Q114: 0.08 | S114: 0.08 | U114: 0.08
C116: UG Sec In Duct/Svs - CCA Class | G116: 47 | I116: 47 | K116: 47 | M116: 47 | O116: 47 | Q116: 47 | S116: 47 | U116: 47
C117: UG Sec In Duct/Svs - CCA Rate | G117: 0.08 | I117: 0.08 | K117: 0.08 | M117: 0.08 | O117: 0.08 | Q117: 0.08 | S117: 0.08 | U117: 0.08
C119: Air Insulated Switchgear - CCA Class | G119: 47 | I119: 47 | K119: 47 | M119: 47 | O119: 47 | Q119: 47 | S119: 47 | U119: 47
C120: Air Insulated Switchgear - CCA Rate | G120: 0.08 | I120: 0.08 | K120: 0.08 | M120: 0.08 | O120: 0.08 | Q120: 0.08 | S120: 0.08 | U120: 0.08
C122: Solid Dielectric Switchgear - CCA Class | G122: 47 | I122: 47 | K122: 47 | M122: 47 | O122: 47 | Q122: 47 | S122: 47 | U122: 47
C123: Solid Dielectric Switchgear - CCA Rate | G123: 0.08 | I123: 0.08 | K123: 0.08 | M123: 0.08 | O123: 0.08 | Q123: 0.08 | S123: 0.08 | U123: 0.08
C125: UG Cable Injection - CCA Class | G125: 47 | I125: 47 | K125: 47 | M125: 47 | O125: 47 | Q125: 47 | S125: 47 | U125: 47
C126: UG Cable Injection - CCA Rate | G126: 0.08 | I126: 0.08 | K126: 0.08 | M126: 0.08 | O126: 0.08 | Q126: 0.08 | S126: 0.08 | U126: 0.08
C128: MS Integrated P&C Systems - CCA Class | G128: 47 | I128: 47 | K128: 47 | M128: 47 | O128: 47 | Q128: 47 | S128: 47 | U128: 47
C129: MS Integrated P&C Systems - CCA Rate | G129: 0.08 | I129: 0.08 | K129: 0.08 | M129: 0.08 | O129: 0.08 | Q129: 0.08 | S129: 0.08 | U129: 0.08
C131: MS Building Improvements - CCA Class | G131: 1 | I131: 1 | K131: 1 | M131: 1 | O131: 1 | Q131: 1 | S131: 1 | U131: 1
C132: MS Building Improvements - CCA Rate | G132: 0.04 | I132: 0.04 | K132: 0.04 | M132: 0.04 | O132: 0.04 | Q132: 0.04 | S132: 0.04 | U132: 0.04
C134: Capital Contributions Paid - CCA Class | G134: 47 | I134: 47 | K134: 47 | M134: 47 | O134: 47 | Q134: 47 | S134: 47 | U134: 47
C135: Capital Contributions Paid - CCA Rate | G135: 0.08 | I135: 0.08 | K135: 0.08 | M135: 0.08 | O135: 0.08 | Q135: 0.08 | S135: 0.08 | U135: 0.08
B138: Assumptions
B139: 1 | C139: Fiscal calendar year (January 1 to December 31) used.
B140: 3 | C140: Amortization is done on a striaght line basis and no "half-year" rule applied.

Sheet 4. ICM_Assets_and_Rate_Base
B17: Sheet 4: ICM Assets - Net Book Value
I18: 2019 | K18: 2020 | M18: 2021 | O18: 2022 | Q18: 2023 | S18: 2024 | U18: 2025 | W18: 2026
B19: Net Fixed Assets - OH Swtch & Cpctrs
C21: Gross Book Value
D22: Opening Balance | K22: =I25 -> 91095.4476 | M22: =K25 -> 91095.4476 | O22: =M25 -> 91095.4476 | Q22: =O25 -> 91095.4476 | S22: =Q25 -> 91095.4476 | U22: =S25 -> 91095.4476 | W22: =U25 -> 91095.4476
D23: Capital Additions during year (from ICM Costs) | I23: ='2. ICM_Costs'!G182 -> 91095.4476 | K23: ='2. ICM_Costs'!I182 -> 0
D24: Retirements/Removals (if applicable)
D25: Closing Balance | I25: =I22+I23-I24 -> 91095.4476 | K25: =K22+K23-K24 -> 91095.4476 | M25: =M22+M23-M24 -> 91095.4476 | O25: =O22+O23-O24 -> 91095.4476 | Q25: =Q22+Q23-Q24 -> 91095.4476 | S25: =S22+S23-S24 -> 91095.4476 | U25: =U22+U23-U24 -> 91095.4476 | W25: =W22+W23-W24 -> 91095.4476
C27: Accumulated Depreciation
D28: Opening Balance | K28: =I31 -> -2397.248621 | M28: =K31 -> -4794.497242 | O28: =M31 -> -7191.745863 | Q28: =O31 -> -9588.994484 | S28: =Q31 -> -11986.24311 | U28: =S31 -> -14383.49173 | W28: =U31 -> -16986.2188
D29: Amortization expense during year | I29: =IF(ISERROR(-(I23/('3. Cost_of_Service_Parameters'!G45)+MIN((I22/'3. Cost_of_Service_Parameters'!G45),(I22+I28)))), 0, -(I23/('3. Cost_of_Service_Parameters'!G45)+MIN((I22/'3. Cost_of_Service_Parameters'!G45),(I22+I28)))) -> -2397.248621 | K29: =IF(ISERROR(-(K23/('3. Cost_of_Service_Parameters'!I45)+MIN((K22/'3. Cost_of_Service_Parameters'!I45),(K22+K28)))), 0, -(K23/('3. Cost_of_Service_Parameters'!I45)+MIN((K22/'3. Cost_of_Service_Parameters'!I45),(K22+K28)))) -> -2397.248621 | M29: =IF(ISERROR(-(M23/('3. Cost_of_Service_Parameters'!K45)+MIN((M22/'3. Cost_of_Service_Parameters'!K45),(M22+M28)))), 0, -(M23/('3. Cost_of_Service_Parameters'!K45)+MIN((M22/'3. Cost_of_Service_Parameters'!K45),(M22+M28)))) -> -2397.248621 | O29: =IF(ISERROR(-(O23/('3. Cost_of_Service_Parameters'!M45)+MIN((O22/'3. Cost_of_Service_Parameters'!M45),(O22+O28)))), 0, -(O23/('3. Cost_of_Service_Parameters'!M45)+MIN((O22/'3. Cost_of_Service_Parameters'!M45),(O22+O28)))) -> -2397.248621 | Q29: =IF(ISERROR(-(Q23/('3. Cost_of_Service_Parameters'!O45)+MIN((Q22/'3. Cost_of_Service_Parameters'!O45),(Q22+Q28)))), 0, -(Q23/('3. Cost_of_Service_Parameters'!O45)+MIN((Q22/'3. Cost_of_Service_Parameters'!O45),(Q22+Q28)))) -> -2397.248621 | S29: =IF(ISERROR(-(S23/('3. Cost_of_Service_Parameters'!Q45)+MIN((S22/'3. Cost_of_Service_Parameters'!Q45),(S22+S28)))), 0, -(S23/('3. Cost_of_Service_Parameters'!Q45)+MIN((S22/'3. Cost_of_Service_Parameters'!Q45),(S22+S28)))) -> -2397.248621 | U29: =IF(ISERROR(-(U23/('3. Cost_of_Service_Parameters'!S45)+MIN((U22/'3. Cost_of_Service_Parameters'!S45),(U22+U28)))), 0, -(U23/('3. Cost_of_Service_Parameters'!S45)+MIN((U22/'3. Cost_of_Service_Parameters'!S45),(U22+U28)))) -> -2602.727074 | W29: =IF(ISERROR(-(W23/('3. Cost_of_Service_Parameters'!U45)+MIN((W22/'3. Cost_of_Service_Parameters'!U45),(W22+W28)))), 0, -(W23/('3. Cost_of_Service_Parameters'!U45)+MIN((W22/'3. Cost_of_Service_Parameters'!U45),(W22+W28)))) -> -2602.727074
D30: Retirements/Removals (if applicable)
D31: Closing Balance | I31: =I28+I29-I30 -> -2397.248621 | K31: =K28+K29-K30 -> -4794.497242 | M31: =M28+M29-M30 -> -7191.745863 | O31: =O28+O29-O30 -> -9588.994484 | Q31: =Q28+Q29-Q30 -> -11986.24311 | S31: =S28+S29-S30 -> -14383.49173 | U31: =U28+U29-U30 -> -16986.2188 | W31: =W28+W29-W30 -> -19588.94587
C33: Net Book Value
D34: Opening Balance | I34: =I22+I28 -> 0 | K34: =I35 -> 88698.19898 | M34: =K35 -> 86300.95036 | O34: =M35 -> 83903.70174 | Q34: =O35 -> 81506.45312 | S34: =Q35 -> 79109.20449 | U34: =S35 -> 76711.95587 | W34: =U35 -> 74109.2288
D35: Closing Balance | I35: =I25+I31 -> 88698.19898 | K35: =K25+K31 -> 86300.95036 | M35: =M25+M31 -> 83903.70174 | O35: =O25+O31 -> 81506.45312 | Q35: =Q25+Q31 -> 79109.20449 | S35: =S25+S31 -> 76711.95587 | U35: =U25+U31 -> 74109.2288 | W35: =W25+W31 -> 71506.50173
D36: Incremental CAPEX | I36: =I35 -> 88698.19898 | K36: =AVERAGE(K34:K35) -> 87499.57467 | M36: =AVERAGE(M34:M35) -> 85102.32605 | O36: =AVERAGE(O34:O35) -> 82705.07743 | Q36: =AVERAGE(Q34:Q35) -> 80307.82881 | S36: =AVERAGE(S34:S35) -> 77910.58018 | U36: =AVERAGE(U34:U35) -> 75410.59234 | W36: =AVERAGE(W34:W35) -> 72807.86526
B38: Net Fixed Assets - Concrete Poles
C40: Gross Book Value
D41: Opening Balance | K41: =I44 -> 0 | M41: =K44 -> 0 | O41: =M44 -> 0 | Q41: =O44 -> 0 | S41: =Q44 -> 0 | U41: =S44 -> 0 | W41: =U44 -> 0
D42: Capital Additions during year (from ICM Costs) | I42: ='2. ICM_Costs'!G184 -> 0 | K42: ='2. ICM_Costs'!I184 -> 0
D43: Retirements/Removals (if applicable)
D44: Closing Balance | I44: =I41+I42-I43 -> 0 | K44: =K41+K42-K43 -> 0 | M44: =M41+M42-M43 -> 0 | O44: =O41+O42-O43 -> 0 | Q44: =Q41+Q42-Q43 -> 0 | S44: =S41+S42-S43 -> 0 | U44: =U41+U42-U43 -> 0 | W44: =W41+W42-W43 -> 0
C46: Accumulated Depreciation
D47: Opening Balance | K47: =I50 -> 0 | M47: =K50 -> 0 | O47: =M50 -> 0 | Q47: =O50 -> 0 | S47: =Q50 -> 0 | U47: =S50 -> 0 | W47: =U50 -> 0
D48: Amortization expense during year | I48: =IF(ISERROR(-(I42/('3. Cost_of_Service_Parameters'!G47)+MIN((I41/'3. Cost_of_Service_Parameters'!G47),(I41+I47)))), 0, -(I42/('3. Cost_of_Service_Parameters'!G47)+MIN((I41/'3. Cost_of_Service_Parameters'!G47),(I41+I47)))) -> 0 | K48: =IF(ISERROR(-(K42/('3. Cost_of_Service_Parameters'!I47*2)+MIN((K41/'3. Cost_of_Service_Parameters'!I47),(K41+K47)))), 0, -(K42/('3. Cost_of_Service_Parameters'!I47*2)+MIN((K41/'3. Cost_of_Service_Parameters'!I47),(K41+K47)))) -> 0 | M48: =IF(ISERROR(-(M42/('3. Cost_of_Service_Parameters'!K47*2)+MIN((M41/'3. Cost_of_Service_Parameters'!K47),(M41+M47)))), 0, -(M42/('3. Cost_of_Service_Parameters'!K47*2)+MIN((M41/'3. Cost_of_Service_Parameters'!K47),(M41+M47)))) -> 0 | O48: =IF(ISERROR(-(O42/('3. Cost_of_Service_Parameters'!M47*2)+MIN((O41/'3. Cost_of_Service_Parameters'!M47),(O41+O47)))), 0, -(O42/('3. Cost_of_Service_Parameters'!M47*2)+MIN((O41/'3. Cost_of_Service_Parameters'!M47),(O41+O47)))) -> 0 | Q48: =IF(ISERROR(-(Q42/('3. Cost_of_Service_Parameters'!O47*2)+MIN((Q41/'3. Cost_of_Service_Parameters'!O47),(Q41+Q47)))), 0, -(Q42/('3. Cost_of_Service_Parameters'!O47*2)+MIN((Q41/'3. Cost_of_Service_Parameters'!O47),(Q41+Q47)))) -> 0 | S48: =IF(ISERROR(-(S42/('3. Cost_of_Service_Parameters'!Q47*2)+MIN((S41/'3. Cost_of_Service_Parameters'!Q47),(S41+S47)))), 0, -(S42/('3. Cost_of_Service_Parameters'!Q47*2)+MIN((S41/'3. Cost_of_Service_Parameters'!Q47),(S41+S47)))) -> 0 | U48: =IF(ISERROR(-(U42/('3. Cost_of_Service_Parameters'!S47*2)+MIN((U41/'3. Cost_of_Service_Parameters'!S47),(U41+U47)))), 0, -(U42/('3. Cost_of_Service_Parameters'!S47*2)+MIN((U41/'3. Cost_of_Service_Parameters'!S47),(U41+U47)))) -> 0 | W48: =IF(ISERROR(-(W42/('3. Cost_of_Service_Parameters'!U47*2)+MIN((W41/'3. Cost_of_Service_Parameters'!U47),(W41+W47)))), 0, -(W42/('3. Cost_of_Service_Parameters'!U47*2)+MIN((W41/'3. Cost_of_Service_Parameters'!U47),(W41+W47)))) -> 0
D49: Retirements/Removals (if applicable)
D50: Closing Balance | I50: =I47+I48-I49 -> 0 | K50: =K47+K48-K49 -> 0 | M50: =M47+M48-M49 -> 0 | O50: =O47+O48-O49 -> 0 | Q50: =Q47+Q48-Q49 -> 0 | S50: =S47+S48-S49 -> 0 | U50: =U47+U48-U49 -> 0 | W50: =W47+W48-W49 -> 0
C52: Net Book Value
D53: Opening Balance | I53: =I41+I47 -> 0 | K53: =I54 -> 0 | M53: =K54 -> 0 | O53: =M54 -> 0 | Q53: =O54 -> 0 | S53: =Q54 -> 0 | U53: =S54 -> 0 | W53: =U54 -> 0
D54: Closing Balance | I54: =I44+I50 -> 0 | K54: =K44+K50 -> 0 | M54: =M44+M50 -> 0 | O54: =O44+O50 -> 0 | Q54: =Q44+Q50 -> 0 | S54: =S44+S50 -> 0 | U54: =U44+U50 -> 0 | W54: =W44+W50 -> 0
D55: Incremental CAPEX | I55: =I54 -> 0 | K55: =AVERAGE(K53:K54) -> 0 | M55: =AVERAGE(M53:M54) -> 0 | O55: =AVERAGE(O53:O54) -> 0 | Q55: =AVERAGE(Q53:Q54) -> 0 | S55: =AVERAGE(S53:S54) -> 0 | U55: =AVERAGE(U53:U54) -> 0 | W55: =AVERAGE(W53:W54) -> 0
B57: Net Fixed Assets - Wood Poles
C59: Gross Book Value
D60: Opening Balance | K60: =I63 -> 556694.402 | M60: =K63 -> 556694.402 | O60: =M63 -> 556694.402 | Q60: =O63 -> 556694.402 | S60: =Q63 -> 556694.402 | U60: =S63 -> 556694.402 | W60: =U63 -> 556694.402
D61: Capital Additions during year (from ICM Costs) | I61: ='2. ICM_Costs'!G186 -> 556694.402 | K61: ='2. ICM_Costs'!I186 -> 0
D62: Retirements/Removals (if applicable)
D63: Closing Balance | I63: =I60+I61-I62 -> 556694.402 | K63: =K60+K61-K62 -> 556694.402 | M63: =M60+M61-M62 -> 556694.402 | O63: =O60+O61-O62 -> 556694.402 | Q63: =Q60+Q61-Q62 -> 556694.402 | S63: =S60+S61-S62 -> 556694.402 | U63: =U60+U61-U62 -> 556694.402 | W63: =W60+W61-W62 -> 556694.402
C65: Accumulated Depreciation
D66: Opening Balance | K66: =I69 -> -12652.1455 | M66: =K69 -> -25304.291 | O66: =M69 -> -37956.4365 | Q66: =O69 -> -50608.582 | S66: =Q69 -> -63260.7275 | U66: =S69 -> -75912.873 | W66: =U69 -> -88283.85971
D67: Amortization expense during year | I67: =IF(ISERROR(-(I61/('3. Cost_of_Service_Parameters'!G49)+MIN((I60/'3. Cost_of_Service_Parameters'!G49),(I60+I66)))), 0, -(I61/('3. Cost_of_Service_Parameters'!G49)+MIN((I60/'3. Cost_of_Service_Parameters'!G49),(I60+I66)))) -> -12652.1455 | K67: =IF(ISERROR(-(K61/('3. Cost_of_Service_Parameters'!I49*2)+MIN((K60/'3. Cost_of_Service_Parameters'!I49),(K60+K66)))), 0, -(K61/('3. Cost_of_Service_Parameters'!I49*2)+MIN((K60/'3. Cost_of_Service_Parameters'!I49),(K60+K66)))) -> -12652.1455 | M67: =IF(ISERROR(-(M61/('3. Cost_of_Service_Parameters'!K49*2)+MIN((M60/'3. Cost_of_Service_Parameters'!K49),(M60+M66)))), 0, -(M61/('3. Cost_of_Service_Parameters'!K49*2)+MIN((M60/'3. Cost_of_Service_Parameters'!K49),(M60+M66)))) -> -12652.1455 | O67: =IF(ISERROR(-(O61/('3. Cost_of_Service_Parameters'!M49*2)+MIN((O60/'3. Cost_of_Service_Parameters'!M49),(O60+O66)))), 0, -(O61/('3. Cost_of_Service_Parameters'!M49*2)+MIN((O60/'3. Cost_of_Service_Parameters'!M49),(O60+O66)))) -> -12652.1455 | Q67: =IF(ISERROR(-(Q61/('3. Cost_of_Service_Parameters'!O49*2)+MIN((Q60/'3. Cost_of_Service_Parameters'!O49),(Q60+Q66)))), 0, -(Q61/('3. Cost_of_Service_Parameters'!O49*2)+MIN((Q60/'3. Cost_of_Service_Parameters'!O49),(Q60+Q66)))) -> -12652.1455 | S67: =IF(ISERROR(-(S61/('3. Cost_of_Service_Parameters'!Q49*2)+MIN((S60/'3. Cost_of_Service_Parameters'!Q49),(S60+S66)))), 0, -(S61/('3. Cost_of_Service_Parameters'!Q49*2)+MIN((S60/'3. Cost_of_Service_Parameters'!Q49),(S60+S66)))) -> -12652.1455 | U67: =IF(ISERROR(-(U61/('3. Cost_of_Service_Parameters'!S49*2)+MIN((U60/'3. Cost_of_Service_Parameters'!S49),(U60+U66)))), 0, -(U61/('3. Cost_of_Service_Parameters'!S49*2)+MIN((U60/'3. Cost_of_Service_Parameters'!S49),(U60+U66)))) -> -12370.98671 | W67: =IF(ISERROR(-(W61/('3. Cost_of_Service_Parameters'!U49*2)+MIN((W60/'3. Cost_of_Service_Parameters'!U49),(W60+W66)))), 0, -(W61/('3. Cost_of_Service_Parameters'!U49*2)+MIN((W60/'3. Cost_of_Service_Parameters'!U49),(W60+W66)))) -> -12370.98671
D68: Retirements/Removals (if applicable)
D69: Closing Balance | I69: =I66+I67-I68 -> -12652.1455 | K69: =K66+K67-K68 -> -25304.291 | M69: =M66+M67-M68 -> -37956.4365 | O69: =O66+O67-O68 -> -50608.582 | Q69: =Q66+Q67-Q68 -> -63260.7275 | S69: =S66+S67-S68 -> -75912.873 | U69: =U66+U67-U68 -> -88283.85971 | W69: =W66+W67-W68 -> -100654.8464
C71: Net Book Value
D72: Opening Balance | I72: =I60+I66 -> 0 | K72: =I73 -> 544042.2565 | M72: =K73 -> 531390.111 | O72: =M73 -> 518737.9655 | Q72: =O73 -> 506085.82 | S72: =Q73 -> 493433.6745 | U72: =S73 -> 480781.529 | W72: =U73 -> 468410.5423
D73: Closing Balance | I73: =I63+I69 -> 544042.2565 | K73: =K63+K69 -> 531390.111 | M73: =M63+M69 -> 518737.9655 | O73: =O63+O69 -> 506085.82 | Q73: =Q63+Q69 -> 493433.6745 | S73: =S63+S69 -> 480781.529 | U73: =U63+U69 -> 468410.5423 | W73: =W63+W69 -> 456039.5556
D74: Incremental CAPEX | I74: =I73 -> 544042.2565 | K74: =AVERAGE(K72:K73) -> 537716.1838 | M74: =AVERAGE(M72:M73) -> 525064.0382 | O74: =AVERAGE(O72:O73) -> 512411.8927 | Q74: =AVERAGE(Q72:Q73) -> 499759.7473 | S74: =AVERAGE(S72:S73) -> 487107.6018 | U74: =AVERAGE(U72:U73) -> 474596.0356 | W74: =AVERAGE(W72:W73) -> 462225.0489
B76: Net Fixed Assets - OH Transformers
C78: Gross Book Value
D79: Opening Balance | K79: =I82 -> 101217.164 | M79: =K82 -> 101217.164 | O79: =M82 -> 101217.164 | Q79: =O82 -> 101217.164 | S79: =Q82 -> 101217.164 | U79: =S82 -> 101217.164 | W79: =U82 -> 101217.164
D80: Capital Additions during year (from ICM Costs) | I80: ='2. ICM_Costs'!G188 -> 101217.164 | K80: ='2. ICM_Costs'!I188 -> 0
D81: Retirements/Removals (if applicable)
D82: Closing Balance | I82: =I79+I80-I81 -> 101217.164 | K82: =K79+K80-K81 -> 101217.164 | M82: =M79+M80-M81 -> 101217.164 | O82: =O79+O80-O81 -> 101217.164 | Q82: =Q79+Q80-Q81 -> 101217.164 | S82: =S79+S80-S81 -> 101217.164 | U82: =U79+U80-U81 -> 101217.164 | W82: =W79+W80-W81 -> 101217.164
C84: Accumulated Depreciation
D85: Opening Balance | K85: =I88 -> -2468.711317 | M85: =K88 -> -4937.422634 | O85: =M88 -> -7406.133951 | Q85: =O88 -> -9874.845268 | S85: =Q88 -> -12343.55659 | U85: =S88 -> -14812.2679 | W85: =U88 -> -17061.53821
D86: Amortization expense during year | I86: =IF(ISERROR(-(I80/('3. Cost_of_Service_Parameters'!G51)+MIN((I79/'3. Cost_of_Service_Parameters'!G51),(I79+I85)))), 0, -(I80/('3. Cost_of_Service_Parameters'!G51)+MIN((I79/'3. Cost_of_Service_Parameters'!G51),(I79+I85)))) -> -2468.711317 | K86: =IF(ISERROR(-(K80/('3. Cost_of_Service_Parameters'!I51*2)+MIN((K79/'3. Cost_of_Service_Parameters'!I51),(K79+K85)))), 0, -(K80/('3. Cost_of_Service_Parameters'!I51*2)+MIN((K79/'3. Cost_of_Service_Parameters'!I51),(K79+K85)))) -> -2468.711317 | M86: =IF(ISERROR(-(M80/('3. Cost_of_Service_Parameters'!K51*2)+MIN((M79/'3. Cost_of_Service_Parameters'!K51),(M79+M85)))), 0, -(M80/('3. Cost_of_Service_Parameters'!K51*2)+MIN((M79/'3. Cost_of_Service_Parameters'!K51),(M79+M85)))) -> -2468.711317 | O86: =IF(ISERROR(-(O80/('3. Cost_of_Service_Parameters'!M51*2)+MIN((O79/'3. Cost_of_Service_Parameters'!M51),(O79+O85)))), 0, -(O80/('3. Cost_of_Service_Parameters'!M51*2)+MIN((O79/'3. Cost_of_Service_Parameters'!M51),(O79+O85)))) -> -2468.711317 | Q86: =IF(ISERROR(-(Q80/('3. Cost_of_Service_Parameters'!O51*2)+MIN((Q79/'3. Cost_of_Service_Parameters'!O51),(Q79+Q85)))), 0, -(Q80/('3. Cost_of_Service_Parameters'!O51*2)+MIN((Q79/'3. Cost_of_Service_Parameters'!O51),(Q79+Q85)))) -> -2468.711317 | S86: =IF(ISERROR(-(S80/('3. Cost_of_Service_Parameters'!Q51*2)+MIN((S79/'3. Cost_of_Service_Parameters'!Q51),(S79+S85)))), 0, -(S80/('3. Cost_of_Service_Parameters'!Q51*2)+MIN((S79/'3. Cost_of_Service_Parameters'!Q51),(S79+S85)))) -> -2468.711317 | U86: =IF(ISERROR(-(U80/('3. Cost_of_Service_Parameters'!S51*2)+MIN((U79/'3. Cost_of_Service_Parameters'!S51),(U79+U85)))), 0, -(U80/('3. Cost_of_Service_Parameters'!S51*2)+MIN((U79/'3. Cost_of_Service_Parameters'!S51),(U79+U85)))) -> -2249.270311 | W86: =IF(ISERROR(-(W80/('3. Cost_of_Service_Parameters'!U51*2)+MIN((W79/'3. Cost_of_Service_Parameters'!U51),(W79+W85)))), 0, -(W80/('3. Cost_of_Service_Parameters'!U51*2)+MIN((W79/'3. Cost_of_Service_Parameters'!U51),(W79+W85)))) -> -2249.270311
D87: Retirements/Removals (if applicable)
D88: Closing Balance | I88: =I85+I86-I87 -> -2468.711317 | K88: =K85+K86-K87 -> -4937.422634 | M88: =M85+M86-M87 -> -7406.133951 | O88: =O85+O86-O87 -> -9874.845268 | Q88: =Q85+Q86-Q87 -> -12343.55659 | S88: =S85+S86-S87 -> -14812.2679 | U88: =U85+U86-U87 -> -17061.53821 | W88: =W85+W86-W87 -> -19310.80852
C90: Net Book Value
D91: Opening Balance | I91: =I79+I85 -> 0 | K91: =I92 -> 98748.45268 | M91: =K92 -> 96279.74137 | O91: =M92 -> 93811.03005 | Q91: =O92 -> 91342.31873 | S91: =Q92 -> 88873.60741 | U91: =S92 -> 86404.8961 | W91: =U92 -> 84155.62579
D92: Closing Balance | I92: =I82+I88 -> 98748.45268 | K92: =K82+K88 -> 96279.74137 | M92: =M82+M88 -> 93811.03005 | O92: =O82+O88 -> 91342.31873 | Q92: =Q82+Q88 -> 88873.60741 | S92: =S82+S88 -> 86404.8961 | U92: =U82+U88 -> 84155.62579 | W92: =W82+W88 -> 81906.35548
D93: Incremental CAPEX | I93: =I92 -> 98748.45268 | K93: =AVERAGE(K91:K92) -> 97514.09702 | M93: =AVERAGE(M91:M92) -> 95045.38571 | O93: =AVERAGE(O91:O92) -> 92576.67439 | Q93: =AVERAGE(Q91:Q92) -> 90107.96307 | S93: =AVERAGE(S91:S92) -> 87639.25176 | U93: =AVERAGE(U91:U92) -> 85280.26094 | W93: =AVERAGE(W91:W92) -> 83030.99063
B95: Net Fixed Assets - OH Prim Cond & Dev
C97: Gross Book Value
D98: Opening Balance | K98: =I101 -> 151825.746 | M98: =K101 -> 151825.746 | O98: =M101 -> 151825.746 | Q98: =O101 -> 151825.746 | S98: =Q101 -> 151825.746 | U98: =S101 -> 151825.746 | W98: =U101 -> 151825.746
D99: Capital Additions during year (from ICM Costs) | I99: ='2. ICM_Costs'!G190 -> 151825.746 | K99: ='2. ICM_Costs'!I190 -> 0
D100: Retirements/Removals (if applicable)
D101: Closing Balance | I101: =I98+I99-I100 -> 151825.746 | K101: =K98+K99-K100 -> 151825.746 | M101: =M98+M99-M100 -> 151825.746 | O101: =O98+O99-O100 -> 151825.746 | Q101: =Q98+Q99-Q100 -> 151825.746 | S101: =S98+S99-S100 -> 151825.746 | U101: =U98+U99-U100 -> 151825.746 | W101: =W98+W99-W100 -> 151825.746
C103: Accumulated Depreciation
D104: Opening Balance | K104: =I107 -> -3373.905467 | M104: =K107 -> -6747.810933 | O104: =M107 -> -10121.7164 | Q104: =O107 -> -13495.62187 | S104: =Q107 -> -16869.52733 | U104: =S107 -> -20243.4328 | W104: =U107 -> -23279.94772
D105: Amortization expense during year | I105: =IF(ISERROR(-(I99/('3. Cost_of_Service_Parameters'!G53)+MIN((I98/'3. Cost_of_Service_Parameters'!G53),(I98+I104)))), 0, -(I99/('3. Cost_of_Service_Parameters'!G53)+MIN((I98/'3. Cost_of_Service_Parameters'!G53),(I98+I104)))) -> -3373.905467 | K105: =IF(ISERROR(-(K99/('3. Cost_of_Service_Parameters'!I53*2)+MIN((K98/'3. Cost_of_Service_Parameters'!I53),(K98+K104)))), 0, -(K99/('3. Cost_of_Service_Parameters'!I53*2)+MIN((K98/'3. Cost_of_Service_Parameters'!I53),(K98+K104)))) -> -3373.905467 | M105: =IF(ISERROR(-(M99/('3. Cost_of_Service_Parameters'!K53*2)+MIN((M98/'3. Cost_of_Service_Parameters'!K53),(M98+M104)))), 0, -(M99/('3. Cost_of_Service_Parameters'!K53*2)+MIN((M98/'3. Cost_of_Service_Parameters'!K53),(M98+M104)))) -> -3373.905467 | O105: =IF(ISERROR(-(O99/('3. Cost_of_Service_Parameters'!M53*2)+MIN((O98/'3. Cost_of_Service_Parameters'!M53),(O98+O104)))), 0, -(O99/('3. Cost_of_Service_Parameters'!M53*2)+MIN((O98/'3. Cost_of_Service_Parameters'!M53),(O98+O104)))) -> -3373.905467 | Q105: =IF(ISERROR(-(Q99/('3. Cost_of_Service_Parameters'!O53*2)+MIN((Q98/'3. Cost_of_Service_Parameters'!O53),(Q98+Q104)))), 0, -(Q99/('3. Cost_of_Service_Parameters'!O53*2)+MIN((Q98/'3. Cost_of_Service_Parameters'!O53),(Q98+Q104)))) -> -3373.905467 | S105: =IF(ISERROR(-(S99/('3. Cost_of_Service_Parameters'!Q53*2)+MIN((S98/'3. Cost_of_Service_Parameters'!Q53),(S98+S104)))), 0, -(S99/('3. Cost_of_Service_Parameters'!Q53*2)+MIN((S98/'3. Cost_of_Service_Parameters'!Q53),(S98+S104)))) -> -3373.905467 | U105: =IF(ISERROR(-(U99/('3. Cost_of_Service_Parameters'!S53*2)+MIN((U98/'3. Cost_of_Service_Parameters'!S53),(U98+U104)))), 0, -(U99/('3. Cost_of_Service_Parameters'!S53*2)+MIN((U98/'3. Cost_of_Service_Parameters'!S53),(U98+U104)))) -> -3036.51492 | W105: =IF(ISERROR(-(W99/('3. Cost_of_Service_Parameters'!U53*2)+MIN((W98/'3. Cost_of_Service_Parameters'!U53),(W98+W104)))), 0, -(W99/('3. Cost_of_Service_Parameters'!U53*2)+MIN((W98/'3. Cost_of_Service_Parameters'!U53),(W98+W104)))) -> -3036.51492
D106: Retirements/Removals (if applicable)
D107: Closing Balance | I107: =I104+I105-I106 -> -3373.905467 | K107: =K104+K105-K106 -> -6747.810933 | M107: =M104+M105-M106 -> -10121.7164 | O107: =O104+O105-O106 -> -13495.62187 | Q107: =Q104+Q105-Q106 -> -16869.52733 | S107: =S104+S105-S106 -> -20243.4328 | U107: =U104+U105-U106 -> -23279.94772 | W107: =W104+W105-W106 -> -26316.46264
C109: Net Book Value
D110: Opening Balance | I110: =I98+I104 -> 0 | K110: =I111 -> 148451.8405 | M110: =K111 -> 145077.9351 | O110: =M111 -> 141704.0296 | Q110: =O111 -> 138330.1241 | S110: =Q111 -> 134956.2187 | U110: =S111 -> 131582.3132 | W110: =U111 -> 128545.7983
D111: Closing Balance | I111: =I101+I107 -> 148451.8405 | K111: =K101+K107 -> 145077.9351 | M111: =M101+M107 -> 141704.0296 | O111: =O101+O107 -> 138330.1241 | Q111: =Q101+Q107 -> 134956.2187 | S111: =S101+S107 -> 131582.3132 | U111: =U101+U107 -> 128545.7983 | W111: =W101+W107 -> 125509.2834
D112: Incremental CAPEX | I112: =I111 -> 148451.8405 | K112: =AVERAGE(K110:K111) -> 146764.8878 | M112: =AVERAGE(M110:M111) -> 143390.9823 | O112: =AVERAGE(O110:O111) -> 140017.0769 | Q112: =AVERAGE(Q110:Q111) -> 136643.1714 | S112: =AVERAGE(S110:S111) -> 133269.2659 | U112: =AVERAGE(U110:U111) -> 130064.0557 | W112: =AVERAGE(W110:W111) -> 127027.5408
B114: Net Fixed Assets - OH Sec Cond & Dev
C116: Gross Book Value
D117: Opening Balance | K117: =I120 -> 50608.582 | M117: =K120 -> 50608.582 | O117: =M120 -> 50608.582 | Q117: =O120 -> 50608.582 | S117: =Q120 -> 50608.582 | U117: =S120 -> 50608.582 | W117: =U120 -> 50608.582
D118: Capital Additions during year (from ICM Costs) | I118: ='2. ICM_Costs'!G192 -> 50608.582 | K118: ='2. ICM_Costs'!I192 -> 0
D119: Retirements/Removals (if applicable)
D120: Closing Balance | I120: =I117+I118-I119 -> 50608.582 | K120: =K117+K118-K119 -> 50608.582 | M120: =M117+M118-M119 -> 50608.582 | O120: =O117+O118-O119 -> 50608.582 | Q120: =Q117+Q118-Q119 -> 50608.582 | S120: =S117+S118-S119 -> 50608.582 | U120: =U117+U118-U119 -> 50608.582 | W120: =W117+W118-W119 -> 50608.582
C122: Accumulated Depreciation
D123: Opening Balance | K123: =I126 -> -1054.345458 | M123: =K126 -> -2108.690917 | O123: =M126 -> -3163.036375 | Q123: =O126 -> -4217.381833 | S123: =Q126 -> -5271.727292 | U123: =S126 -> -6326.07275 | W123: =U126 -> -7338.24439
D124: Amortization expense during year | I124: =IF(ISERROR(-(I118/('3. Cost_of_Service_Parameters'!G55)+MIN((I117/'3. Cost_of_Service_Parameters'!G55),(I117+I123)))), 0, -(I118/('3. Cost_of_Service_Parameters'!G55)+MIN((I117/'3. Cost_of_Service_Parameters'!G55),(I117+I123)))) -> -1054.345458 | K124: =IF(ISERROR(-(K118/('3. Cost_of_Service_Parameters'!I55*2)+MIN((K117/'3. Cost_of_Service_Parameters'!I55),(K117+K123)))), 0, -(K118/('3. Cost_of_Service_Parameters'!I55*2)+MIN((K117/'3. Cost_of_Service_Parameters'!I55),(K117+K123)))) -> -1054.345458 | M124: =IF(ISERROR(-(M118/('3. Cost_of_Service_Parameters'!K55*2)+MIN((M117/'3. Cost_of_Service_Parameters'!K55),(M117+M123)))), 0, -(M118/('3. Cost_of_Service_Parameters'!K55*2)+MIN((M117/'3. Cost_of_Service_Parameters'!K55),(M117+M123)))) -> -1054.345458 | O124: =IF(ISERROR(-(O118/('3. Cost_of_Service_Parameters'!M55*2)+MIN((O117/'3. Cost_of_Service_Parameters'!M55),(O117+O123)))), 0, -(O118/('3. Cost_of_Service_Parameters'!M55*2)+MIN((O117/'3. Cost_of_Service_Parameters'!M55),(O117+O123)))) -> -1054.345458 | Q124: =IF(ISERROR(-(Q118/('3. Cost_of_Service_Parameters'!O55*2)+MIN((Q117/'3. Cost_of_Service_Parameters'!O55),(Q117+Q123)))), 0, -(Q118/('3. Cost_of_Service_Parameters'!O55*2)+MIN((Q117/'3. Cost_of_Service_Parameters'!O55),(Q117+Q123)))) -> -1054.345458 | S124: =IF(ISERROR(-(S118/('3. Cost_of_Service_Parameters'!Q55*2)+MIN((S117/'3. Cost_of_Service_Parameters'!Q55),(S117+S123)))), 0, -(S118/('3. Cost_of_Service_Parameters'!Q55*2)+MIN((S117/'3. Cost_of_Service_Parameters'!Q55),(S117+S123)))) -> -1054.345458 | U124: =IF(ISERROR(-(U118/('3. Cost_of_Service_Parameters'!S55*2)+MIN((U117/'3. Cost_of_Service_Parameters'!S55),(U117+U123)))), 0, -(U118/('3. Cost_of_Service_Parameters'!S55*2)+MIN((U117/'3. Cost_of_Service_Parameters'!S55),(U117+U123)))) -> -1012.17164 | W124: =IF(ISERROR(-(W118/('3. Cost_of_Service_Parameters'!U55*2)+MIN((W117/'3. Cost_of_Service_Parameters'!U55),(W117+W123)))), 0, -(W118/('3. Cost_of_Service_Parameters'!U55*2)+MIN((W117/'3. Cost_of_Service_Parameters'!U55),(W117+W123)))) -> -1012.17164
D125: Retirements/Removals (if applicable)
D126: Closing Balance | I126: =I123+I124-I125 -> -1054.345458 | K126: =K123+K124-K125 -> -2108.690917 | M126: =M123+M124-M125 -> -3163.036375 | O126: =O123+O124-O125 -> -4217.381833 | Q126: =Q123+Q124-Q125 -> -5271.727292 | S126: =S123+S124-S125 -> -6326.07275 | U126: =U123+U124-U125 -> -7338.24439 | W126: =W123+W124-W125 -> -8350.41603
C128: Net Book Value
D129: Opening Balance | I129: =I117+I123 -> 0 | K129: =I130 -> 49554.23654 | M129: =K130 -> 48499.89108 | O129: =M130 -> 47445.54562 | Q129: =O130 -> 46391.20017 | S129: =Q130 -> 45336.85471 | U129: =S130 -> 44282.50925 | W129: =U130 -> 43270.33761
D130: Closing Balance | I130: =I120+I126 -> 49554.23654 | K130: =K120+K126 -> 48499.89108 | M130: =M120+M126 -> 47445.54562 | O130: =O120+O126 -> 46391.20017 | Q130: =Q120+Q126 -> 45336.85471 | S130: =S120+S126 -> 44282.50925 | U130: =U120+U126 -> 43270.33761 | W130: =W120+W126 -> 42258.16597
D131: Incremental CAPEX | I131: =I130 -> 49554.23654 | K131: =AVERAGE(K129:K130) -> 49027.06381 | M131: =AVERAGE(M129:M130) -> 47972.71835 | O131: =AVERAGE(O129:O130) -> 46918.3729 | Q131: =AVERAGE(Q129:Q130) -> 45864.02744 | S131: =AVERAGE(S129:S130) -> 44809.68198 | U131: =AVERAGE(U129:U130) -> 43776.42343 | W131: =AVERAGE(W129:W130) -> 42764.25179
B133: Net Fixed Assets - UG Transformers
C135: Gross Book Value
D136: Opening Balance | K136: =I139 -> 2794878.904 | M136: =K139 -> 2794878.904 | O136: =M139 -> 2794878.904 | Q136: =O139 -> 2794878.904 | S136: =Q139 -> 2794878.904 | U136: =S139 -> 2794878.904 | W136: =U139 -> 2794878.904
D137: Capital Additions during year (from ICM Costs) | I137: ='2. ICM_Costs'!G194 -> 2794878.904 | K137: ='2. ICM_Costs'!I194 -> 0
D138: Retirements/Removals (if applicable)
D139: Closing Balance | I139: =I136+I137-I138 -> 2794878.904 | K139: =K136+K137-K138 -> 2794878.904 | M139: =M136+M137-M138 -> 2794878.904 | O139: =O136+O137-O138 -> 2794878.904 | Q139: =Q136+Q137-Q138 -> 2794878.904 | S139: =S136+S137-S138 -> 2794878.904 | U139: =U136+U137-U138 -> 2794878.904 | W139: =W136+W137-W138 -> 2794878.904
C141: Accumulated Depreciation
D142: Opening Balance | K142: =I145 -> -87339.96575 | M142: =K145 -> -174679.9315 | O142: =M145 -> -262019.8973 | Q142: =O145 -> -349359.863 | S142: =Q145 -> -436699.8287 | U142: =S145 -> -524039.7945 | W142: =U145 -> -617202.4246
D143: Amortization expense during year | I143: =IF(ISERROR(-(I137/('3. Cost_of_Service_Parameters'!G57)+MIN((I136/'3. Cost_of_Service_Parameters'!G57),(I136+I142)))), 0, -(I137/('3. Cost_of_Service_Parameters'!G57)+MIN((I136/'3. Cost_of_Service_Parameters'!G57),(I136+I142)))) -> -87339.96575 | K143: =IF(ISERROR(-(K137/('3. Cost_of_Service_Parameters'!I57*2)+MIN((K136/'3. Cost_of_Service_Parameters'!I57),(K136+K142)))), 0, -(K137/('3. Cost_of_Service_Parameters'!I57*2)+MIN((K136/'3. Cost_of_Service_Parameters'!I57),(K136+K142)))) -> -87339.96575 | M143: =IF(ISERROR(-(M137/('3. Cost_of_Service_Parameters'!K57*2)+MIN((M136/'3. Cost_of_Service_Parameters'!K57),(M136+M142)))), 0, -(M137/('3. Cost_of_Service_Parameters'!K57*2)+MIN((M136/'3. Cost_of_Service_Parameters'!K57),(M136+M142)))) -> -87339.96575 | O143: =IF(ISERROR(-(O137/('3. Cost_of_Service_Parameters'!M57*2)+MIN((O136/'3. Cost_of_Service_Parameters'!M57),(O136+O142)))), 0, -(O137/('3. Cost_of_Service_Parameters'!M57*2)+MIN((O136/'3. Cost_of_Service_Parameters'!M57),(O136+O142)))) -> -87339.96575 | Q143: =IF(ISERROR(-(Q137/('3. Cost_of_Service_Parameters'!O57*2)+MIN((Q136/'3. Cost_of_Service_Parameters'!O57),(Q136+Q142)))), 0, -(Q137/('3. Cost_of_Service_Parameters'!O57*2)+MIN((Q136/'3. Cost_of_Service_Parameters'!O57),(Q136+Q142)))) -> -87339.96575 | S143: =IF(ISERROR(-(S137/('3. Cost_of_Service_Parameters'!Q57*2)+MIN((S136/'3. Cost_of_Service_Parameters'!Q57),(S136+S142)))), 0, -(S137/('3. Cost_of_Service_Parameters'!Q57*2)+MIN((S136/'3. Cost_of_Service_Parameters'!Q57),(S136+S142)))) -> -87339.96575 | U143: =IF(ISERROR(-(U137/('3. Cost_of_Service_Parameters'!S57*2)+MIN((U136/'3. Cost_of_Service_Parameters'!S57),(U136+U142)))), 0, -(U137/('3. Cost_of_Service_Parameters'!S57*2)+MIN((U136/'3. Cost_of_Service_Parameters'!S57),(U136+U142)))) -> -93162.63013 | W143: =IF(ISERROR(-(W137/('3. Cost_of_Service_Parameters'!U57*2)+MIN((W136/'3. Cost_of_Service_Parameters'!U57),(W136+W142)))), 0, -(W137/('3. Cost_of_Service_Parameters'!U57*2)+MIN((W136/'3. Cost_of_Service_Parameters'!U57),(W136+W142)))) -> -93162.63013
D144: Retirements/Removals (if applicable)
D145: Closing Balance | I145: =I142+I143-I144 -> -87339.96575 | K145: =K142+K143-K144 -> -174679.9315 | M145: =M142+M143-M144 -> -262019.8973 | O145: =O142+O143-O144 -> -349359.863 | Q145: =Q142+Q143-Q144 -> -436699.8287 | S145: =S142+S143-S144 -> -524039.7945 | U145: =U142+U143-U144 -> -617202.4246 | W145: =W142+W143-W144 -> -710365.0548
C147: Net Book Value
D148: Opening Balance | I148: =I136+I142 -> 0 | K148: =I149 -> 2707538.938 | M148: =K149 -> 2620198.973 | O148: =M149 -> 2532859.007 | Q148: =O149 -> 2445519.041 | S148: =Q149 -> 2358179.075 | U148: =S149 -> 2270839.11 | W148: =U149 -> 2177676.479
D149: Closing Balance | I149: =I139+I145 -> 2707538.938 | K149: =K139+K145 -> 2620198.973 | M149: =M139+M145 -> 2532859.007 | O149: =O139+O145 -> 2445519.041 | Q149: =Q139+Q145 -> 2358179.075 | S149: =S139+S145 -> 2270839.11 | U149: =U139+U145 -> 2177676.479 | W149: =W139+W145 -> 2084513.849
D150: Incremental CAPEX | I150: =I149 -> 2707538.938 | K150: =AVERAGE(K148:K149) -> 2663868.955 | M150: =AVERAGE(M148:M149) -> 2576528.99 | O150: =AVERAGE(O148:O149) -> 2489189.024 | Q150: =AVERAGE(Q148:Q149) -> 2401849.058 | S150: =AVERAGE(S148:S149) -> 2314509.092 | U150: =AVERAGE(U148:U149) -> 2224257.794 | W150: =AVERAGE(W148:W149) -> 2131095.164
B152: Net Fixed Assets - UG Conduit
C154: Gross Book Value
D155: Opening Balance | K155: =I158 -> 0 | M155: =K158 -> 0 | O155: =M158 -> 0 | Q155: =O158 -> 0 | S155: =Q158 -> 0 | U155: =S158 -> 0 | W155: =U158 -> 0
D156: Capital Additions during year (from ICM Costs) | I156: ='2. ICM_Costs'!G196 -> 0 | K156: ='2. ICM_Costs'!I196 -> 0
D157: Retirements/Removals (if applicable)
D158: Closing Balance | I158: =I155+I156-I157 -> 0 | K158: =K155+K156-K157 -> 0 | M158: =M155+M156-M157 -> 0 | O158: =O155+O156-O157 -> 0 | Q158: =Q155+Q156-Q157 -> 0 | S158: =S155+S156-S157 -> 0 | U158: =U155+U156-U157 -> 0 | W158: =W155+W156-W157 -> 0
C160: Accumulated Depreciation
D161: Opening Balance | K161: =I164 -> 0 | M161: =K164 -> 0 | O161: =M164 -> 0 | Q161: =O164 -> 0 | S161: =Q164 -> 0 | U161: =S164 -> 0 | W161: =U164 -> 0
D162: Amortization expense during year | I162: =IF(ISERROR(-(I156/('3. Cost_of_Service_Parameters'!G59)+MIN((I155/'3. Cost_of_Service_Parameters'!G59),(I155+I161)))), 0, -(I156/('3. Cost_of_Service_Parameters'!G59)+MIN((I155/'3. Cost_of_Service_Parameters'!G59),(I155+I161)))) -> 0 | K162: =IF(ISERROR(-(K156/('3. Cost_of_Service_Parameters'!I59*2)+MIN((K155/'3. Cost_of_Service_Parameters'!I59),(K155+K161)))), 0, -(K156/('3. Cost_of_Service_Parameters'!I59*2)+MIN((K155/'3. Cost_of_Service_Parameters'!I59),(K155+K161)))) -> 0 | M162: =IF(ISERROR(-(M156/('3. Cost_of_Service_Parameters'!K59*2)+MIN((M155/'3. Cost_of_Service_Parameters'!K59),(M155+M161)))), 0, -(M156/('3. Cost_of_Service_Parameters'!K59*2)+MIN((M155/'3. Cost_of_Service_Parameters'!K59),(M155+M161)))) -> 0 | O162: =IF(ISERROR(-(O156/('3. Cost_of_Service_Parameters'!M59*2)+MIN((O155/'3. Cost_of_Service_Parameters'!M59),(O155+O161)))), 0, -(O156/('3. Cost_of_Service_Parameters'!M59*2)+MIN((O155/'3. Cost_of_Service_Parameters'!M59),(O155+O161)))) -> 0 | Q162: =IF(ISERROR(-(Q156/('3. Cost_of_Service_Parameters'!O59*2)+MIN((Q155/'3. Cost_of_Service_Parameters'!O59),(Q155+Q161)))), 0, -(Q156/('3. Cost_of_Service_Parameters'!O59*2)+MIN((Q155/'3. Cost_of_Service_Parameters'!O59),(Q155+Q161)))) -> 0 | S162: =IF(ISERROR(-(S156/('3. Cost_of_Service_Parameters'!Q59*2)+MIN((S155/'3. Cost_of_Service_Parameters'!Q59),(S155+S161)))), 0, -(S156/('3. Cost_of_Service_Parameters'!Q59*2)+MIN((S155/'3. Cost_of_Service_Parameters'!Q59),(S155+S161)))) -> 0 | U162: =IF(ISERROR(-(U156/('3. Cost_of_Service_Parameters'!S59*2)+MIN((U155/'3. Cost_of_Service_Parameters'!S59),(U155+U161)))), 0, -(U156/('3. Cost_of_Service_Parameters'!S59*2)+MIN((U155/'3. Cost_of_Service_Parameters'!S59),(U155+U161)))) -> 0 | W162: =IF(ISERROR(-(W156/('3. Cost_of_Service_Parameters'!U59*2)+MIN((W155/'3. Cost_of_Service_Parameters'!U59),(W155+W161)))), 0, -(W156/('3. Cost_of_Service_Parameters'!U59*2)+MIN((W155/'3. Cost_of_Service_Parameters'!U59),(W155+W161)))) -> 0
D163: Retirements/Removals (if applicable)
D164: Closing Balance | I164: =I161+I162-I163 -> 0 | K164: =K161+K162-K163 -> 0 | M164: =M161+M162-M163 -> 0 | O164: =O161+O162-O163 -> 0 | Q164: =Q161+Q162-Q163 -> 0 | S164: =S161+S162-S163 -> 0 | U164: =U161+U162-U163 -> 0 | W164: =W161+W162-W163 -> 0
C166: Net Book Value
D167: Opening Balance | I167: =I155+I161 -> 0 | K167: =I168 -> 0 | M167: =K168 -> 0 | O167: =M168 -> 0 | Q167: =O168 -> 0 | S167: =Q168 -> 0 | U167: =S168 -> 0 | W167: =U168 -> 0
D168: Closing Balance | I168: =I158+I164 -> 0 | K168: =K158+K164 -> 0 | M168: =M158+M164 -> 0 | O168: =O158+O164 -> 0 | Q168: =Q158+Q164 -> 0 | S168: =S158+S164 -> 0 | U168: =U158+U164 -> 0 | W168: =W158+W164 -> 0
D169: Incremental CAPEX | I169: =I168 -> 0 | K169: =AVERAGE(K167:K168) -> 0 | M169: =AVERAGE(M167:M168) -> 0 | O169: =AVERAGE(O167:O168) -> 0 | Q169: =AVERAGE(Q167:Q168) -> 0 | S169: =AVERAGE(S167:S168) -> 0 | U169: =AVERAGE(U167:U168) -> 0 | W169: =AVERAGE(W167:W168) -> 0
B171: Net Fixed Assets - UG Prim XLPE TR
C173: Gross Book Value
D174: Opening Balance | K174: =I177 -> 379725.0122 | M174: =K177 -> 379725.0122 | O174: =M177 -> 379725.0122 | Q174: =O177 -> 379725.0122 | S174: =Q177 -> 379725.0122 | U174: =S177 -> 379725.0122 | W174: =U177 -> 379725.0122
D175: Capital Additions during year (from ICM Costs) | I175: ='2. ICM_Costs'!G198 -> 379725.0122 | K175: ='2. ICM_Costs'!I198 -> 0
D176: Retirements/Removals (if applicable)
D177: Closing Balance | I177: =I174+I175-I176 -> 379725.0122 | K177: =K174+K175-K176 -> 379725.0122 | M177: =M174+M175-M176 -> 379725.0122 | O177: =O174+O175-O176 -> 379725.0122 | Q177: =Q174+Q175-Q176 -> 379725.0122 | S177: =S174+S175-S176 -> 379725.0122 | U177: =U174+U175-U176 -> 379725.0122 | W177: =W174+W175-W176 -> 379725.0122
C179: Accumulated Depreciation
D180: Opening Balance | K180: =I183 -> -9992.763479 | M180: =K183 -> -19985.52696 | O180: =M183 -> -29978.29044 | Q180: =O183 -> -39971.05392 | S180: =Q183 -> -49963.81739 | U180: =S183 -> -59956.58087 | W180: =U183 -> -68394.91448
D181: Amortization expense during year | I181: =IF(ISERROR(-(I175/('3. Cost_of_Service_Parameters'!G61)+MIN((I174/'3. Cost_of_Service_Parameters'!G61),(I174+I180)))), 0, -(I175/('3. Cost_of_Service_Parameters'!G61)+MIN((I174/'3. Cost_of_Service_Parameters'!G61),(I174+I180)))) -> -9992.763479 | K181: =IF(ISERROR(-(K175/('3. Cost_of_Service_Parameters'!I61*2)+MIN((K174/'3. Cost_of_Service_Parameters'!I61),(K174+K180)))), 0, -(K175/('3. Cost_of_Service_Parameters'!I61*2)+MIN((K174/'3. Cost_of_Service_Parameters'!I61),(K174+K180)))) -> -9992.763479 | M181: =IF(ISERROR(-(M175/('3. Cost_of_Service_Parameters'!K61*2)+MIN((M174/'3. Cost_of_Service_Parameters'!K61),(M174+M180)))), 0, -(M175/('3. Cost_of_Service_Parameters'!K61*2)+MIN((M174/'3. Cost_of_Service_Parameters'!K61),(M174+M180)))) -> -9992.763479 | O181: =IF(ISERROR(-(O175/('3. Cost_of_Service_Parameters'!M61*2)+MIN((O174/'3. Cost_of_Service_Parameters'!M61),(O174+O180)))), 0, -(O175/('3. Cost_of_Service_Parameters'!M61*2)+MIN((O174/'3. Cost_of_Service_Parameters'!M61),(O174+O180)))) -> -9992.763479 | Q181: =IF(ISERROR(-(Q175/('3. Cost_of_Service_Parameters'!O61*2)+MIN((Q174/'3. Cost_of_Service_Parameters'!O61),(Q174+Q180)))), 0, -(Q175/('3. Cost_of_Service_Parameters'!O61*2)+MIN((Q174/'3. Cost_of_Service_Parameters'!O61),(Q174+Q180)))) -> -9992.763479 | S181: =IF(ISERROR(-(S175/('3. Cost_of_Service_Parameters'!Q61*2)+MIN((S174/'3. Cost_of_Service_Parameters'!Q61),(S174+S180)))), 0, -(S175/('3. Cost_of_Service_Parameters'!Q61*2)+MIN((S174/'3. Cost_of_Service_Parameters'!Q61),(S174+S180)))) -> -9992.763479 | U181: =IF(ISERROR(-(U175/('3. Cost_of_Service_Parameters'!S61*2)+MIN((U174/'3. Cost_of_Service_Parameters'!S61),(U174+U180)))), 0, -(U175/('3. Cost_of_Service_Parameters'!S61*2)+MIN((U174/'3. Cost_of_Service_Parameters'!S61),(U174+U180)))) -> -8438.333604 | W181: =IF(ISERROR(-(W175/('3. Cost_of_Service_Parameters'!U61*2)+MIN((W174/'3. Cost_of_Service_Parameters'!U61),(W174+W180)))), 0, -(W175/('3. Cost_of_Service_Parameters'!U61*2)+MIN((W174/'3. Cost_of_Service_Parameters'!U61),(W174+W180)))) -> -8438.333604
D182: Retirements/Removals (if applicable)
D183: Closing Balance | I183: =I180+I181-I182 -> -9992.763479 | K183: =K180+K181-K182 -> -19985.52696 | M183: =M180+M181-M182 -> -29978.29044 | O183: =O180+O181-O182 -> -39971.05392 | Q183: =Q180+Q181-Q182 -> -49963.81739 | S183: =S180+S181-S182 -> -59956.58087 | U183: =U180+U181-U182 -> -68394.91448 | W183: =W180+W181-W182 -> -76833.24808
C185: Net Book Value
D186: Opening Balance | I186: =I174+I180 -> 0 | K186: =I187 -> 369732.2487 | M186: =K187 -> 359739.4852 | O186: =M187 -> 349746.7218 | Q186: =O187 -> 339753.9583 | S186: =Q187 -> 329761.1948 | U186: =S187 -> 319768.4313 | W186: =U187 -> 311330.0977
D187: Closing Balance | I187: =I177+I183 -> 369732.2487 | K187: =K177+K183 -> 359739.4852 | M187: =M177+M183 -> 349746.7218 | O187: =O177+O183 -> 339753.9583 | Q187: =Q177+Q183 -> 329761.1948 | S187: =S177+S183 -> 319768.4313 | U187: =U177+U183 -> 311330.0977 | W187: =W177+W183 -> 302891.7641
D188: Incremental CAPEX | I188: =I187 -> 369732.2487 | K188: =AVERAGE(K186:K187) -> 364735.867 | M188: =AVERAGE(M186:M187) -> 354743.1035 | O188: =AVERAGE(O186:O187) -> 344750.34 | Q188: =AVERAGE(Q186:Q187) -> 334757.5765 | S188: =AVERAGE(S186:S187) -> 324764.8131 | U188: =AVERAGE(U186:U187) -> 315549.2645 | W188: =AVERAGE(W186:W187) -> 307110.9309
B191: Net Fixed Assets - UG Sec - Dir Buried
C193: Gross Book Value
D194: Opening Balance | K194: =I197 -> 205045.0807 | M194: =K197 -> 205045.0807 | O194: =M197 -> 205045.0807 | Q194: =O197 -> 205045.0807 | S194: =Q197 -> 205045.0807 | U194: =S197 -> 205045.0807 | W194: =U197 -> 205045.0807
D195: Capital Additions during year (from ICM Costs) | I195: ='2. ICM_Costs'!G200 -> 205045.0807 | K195: ='2. ICM_Costs'!I200 -> 0
D196: Retirements/Removals (if applicable)
D197: Closing Balance | I197: =I194+I195-I196 -> 205045.0807 | K197: =K194+K195-K196 -> 205045.0807 | M197: =M194+M195-M196 -> 205045.0807 | O197: =O194+O195-O196 -> 205045.0807 | Q197: =Q194+Q195-Q196 -> 205045.0807 | S197: =S194+S195-S196 -> 205045.0807 | U197: =U194+U195-U196 -> 205045.0807 | W197: =W194+W195-W196 -> 205045.0807
C199: Accumulated Depreciation
D200: Opening Balance | K200: =I203 -> -6614.357442 | M200: =K203 -> -13228.71488 | O200: =M203 -> -19843.07233 | Q200: =O203 -> -26457.42977 | S200: =Q203 -> -33071.78721 | U200: =S203 -> -39686.14465 | W200: =U203 -> -46520.98067
D201: Amortization expense during year | I201: =IF(ISERROR(-(I195/('3. Cost_of_Service_Parameters'!G63)+MIN((I194/'3. Cost_of_Service_Parameters'!G63),(I194+I200)))), 0, -(I195/('3. Cost_of_Service_Parameters'!G63)+MIN((I194/'3. Cost_of_Service_Parameters'!G63),(I194+I200)))) -> -6614.357442 | K201: =IF(ISERROR(-(K195/('3. Cost_of_Service_Parameters'!I63*2)+MIN((K194/'3. Cost_of_Service_Parameters'!I63),(K194+K200)))), 0, -(K195/('3. Cost_of_Service_Parameters'!I63*2)+MIN((K194/'3. Cost_of_Service_Parameters'!I63),(K194+K200)))) -> -6614.357442 | M201: =IF(ISERROR(-(M195/('3. Cost_of_Service_Parameters'!K63*2)+MIN((M194/'3. Cost_of_Service_Parameters'!K63),(M194+M200)))), 0, -(M195/('3. Cost_of_Service_Parameters'!K63*2)+MIN((M194/'3. Cost_of_Service_Parameters'!K63),(M194+M200)))) -> -6614.357442 | O201: =IF(ISERROR(-(O195/('3. Cost_of_Service_Parameters'!M63*2)+MIN((O194/'3. Cost_of_Service_Parameters'!M63),(O194+O200)))), 0, -(O195/('3. Cost_of_Service_Parameters'!M63*2)+MIN((O194/'3. Cost_of_Service_Parameters'!M63),(O194+O200)))) -> -6614.357442 | Q201: =IF(ISERROR(-(Q195/('3. Cost_of_Service_Parameters'!O63*2)+MIN((Q194/'3. Cost_of_Service_Parameters'!O63),(Q194+Q200)))), 0, -(Q195/('3. Cost_of_Service_Parameters'!O63*2)+MIN((Q194/'3. Cost_of_Service_Parameters'!O63),(Q194+Q200)))) -> -6614.357442 | S201: =IF(ISERROR(-(S195/('3. Cost_of_Service_Parameters'!Q63*2)+MIN((S194/'3. Cost_of_Service_Parameters'!Q63),(S194+S200)))), 0, -(S195/('3. Cost_of_Service_Parameters'!Q63*2)+MIN((S194/'3. Cost_of_Service_Parameters'!Q63),(S194+S200)))) -> -6614.357442 | U201: =IF(ISERROR(-(U195/('3. Cost_of_Service_Parameters'!S63*2)+MIN((U194/'3. Cost_of_Service_Parameters'!S63),(U194+U200)))), 0, -(U195/('3. Cost_of_Service_Parameters'!S63*2)+MIN((U194/'3. Cost_of_Service_Parameters'!S63),(U194+U200)))) -> -6834.836023 | W201: =IF(ISERROR(-(W195/('3. Cost_of_Service_Parameters'!U63*2)+MIN((W194/'3. Cost_of_Service_Parameters'!U63),(W194+W200)))), 0, -(W195/('3. Cost_of_Service_Parameters'!U63*2)+MIN((W194/'3. Cost_of_Service_Parameters'!U63),(W194+W200)))) -> -6834.836023
D202: Retirements/Removals (if applicable)
D203: Closing Balance | I203: =I200+I201-I202 -> -6614.357442 | K203: =K200+K201-K202 -> -13228.71488 | M203: =M200+M201-M202 -> -19843.07233 | O203: =O200+O201-O202 -> -26457.42977 | Q203: =Q200+Q201-Q202 -> -33071.78721 | S203: =S200+S201-S202 -> -39686.14465 | U203: =U200+U201-U202 -> -46520.98067 | W203: =W200+W201-W202 -> -53355.8167
C205: Net Book Value
D206: Opening Balance | I206: =I194+I200 -> 0 | K206: =I207 -> 198430.7233 | M206: =K207 -> 191816.3658 | O206: =M207 -> 185202.0084 | Q206: =O207 -> 178587.6509 | S206: =Q207 -> 171973.2935 | U206: =S207 -> 165358.936 | W206: =U207 -> 158524.1
D207: Closing Balance | I207: =I197+I203 -> 198430.7233 | K207: =K197+K203 -> 191816.3658 | M207: =M197+M203 -> 185202.0084 | O207: =O197+O203 -> 178587.6509 | Q207: =Q197+Q203 -> 171973.2935 | S207: =S197+S203 -> 165358.936 | U207: =U197+U203 -> 158524.1 | W207: =W197+W203 -> 151689.264
D208: Incremental CAPEX | I208: =I207 -> 198430.7233 | K208: =AVERAGE(K206:K207) -> 195123.5445 | M208: =AVERAGE(M206:M207) -> 188509.1871 | O208: =AVERAGE(O206:O207) -> 181894.8297 | Q208: =AVERAGE(Q206:Q207) -> 175280.4722 | S208: =AVERAGE(S206:S207) -> 168666.1148 | U208: =AVERAGE(U206:U207) -> 161941.518 | W208: =AVERAGE(W206:W207) -> 155106.682
B211: Net Fixed Assets - UG Sec In Duct/Svs
C213: Gross Book Value
D214: Opening Balance | K214: =I217 -> 174679.9315 | M214: =K217 -> 174679.9315 | O214: =M217 -> 174679.9315 | Q214: =O217 -> 174679.9315 | S214: =Q217 -> 174679.9315 | U214: =S217 -> 174679.9315 | W214: =U217 -> 174679.9315
D215: Capital Additions during year (from ICM Costs) | I215: ='2. ICM_Costs'!G202 -> 174679.9315 | K215: ='2. ICM_Costs'!I202 -> 0
D216: Retirements/Removals (if applicable)
D217: Closing Balance | I217: =I214+I215-I216 -> 174679.9315 | K217: =K214+K215-K216 -> 174679.9315 | M217: =M214+M215-M216 -> 174679.9315 | O217: =O214+O215-O216 -> 174679.9315 | Q217: =Q214+Q215-Q216 -> 174679.9315 | S217: =S214+S215-S216 -> 174679.9315 | U217: =U214+U215-U216 -> 174679.9315 | W217: =W214+W215-W216 -> 174679.9315
C219: Accumulated Depreciation
D220: Opening Balance | K220: =I223 -> -4721.07923 | M220: =K223 -> -9442.158459 | O220: =M223 -> -14163.23769 | Q220: =O223 -> -18884.31692 | S220: =Q223 -> -23605.39615 | U220: =S223 -> -28326.47538 | W220: =U223 -> -32693.47367
D221: Amortization expense during year | I221: =IF(ISERROR(-(I215/('3. Cost_of_Service_Parameters'!G65)+MIN((I214/'3. Cost_of_Service_Parameters'!G65),(I214+I220)))), 0, -(I215/('3. Cost_of_Service_Parameters'!G65)+MIN((I214/'3. Cost_of_Service_Parameters'!G65),(I214+I220)))) -> -4721.07923 | K221: =IF(ISERROR(-(K215/('3. Cost_of_Service_Parameters'!I65*2)+MIN((K214/'3. Cost_of_Service_Parameters'!I65),(K214+K220)))), 0, -(K215/('3. Cost_of_Service_Parameters'!I65*2)+MIN((K214/'3. Cost_of_Service_Parameters'!I65),(K214+K220)))) -> -4721.07923 | M221: =IF(ISERROR(-(M215/('3. Cost_of_Service_Parameters'!K65*2)+MIN((M214/'3. Cost_of_Service_Parameters'!K65),(M214+M220)))), 0, -(M215/('3. Cost_of_Service_Parameters'!K65*2)+MIN((M214/'3. Cost_of_Service_Parameters'!K65),(M214+M220)))) -> -4721.07923 | O221: =IF(ISERROR(-(O215/('3. Cost_of_Service_Parameters'!M65*2)+MIN((O214/'3. Cost_of_Service_Parameters'!M65),(O214+O220)))), 0, -(O215/('3. Cost_of_Service_Parameters'!M65*2)+MIN((O214/'3. Cost_of_Service_Parameters'!M65),(O214+O220)))) -> -4721.07923 | Q221: =IF(ISERROR(-(Q215/('3. Cost_of_Service_Parameters'!O65*2)+MIN((Q214/'3. Cost_of_Service_Parameters'!O65),(Q214+Q220)))), 0, -(Q215/('3. Cost_of_Service_Parameters'!O65*2)+MIN((Q214/'3. Cost_of_Service_Parameters'!O65),(Q214+Q220)))) -> -4721.07923 | S221: =IF(ISERROR(-(S215/('3. Cost_of_Service_Parameters'!Q65*2)+MIN((S214/'3. Cost_of_Service_Parameters'!Q65),(S214+S220)))), 0, -(S215/('3. Cost_of_Service_Parameters'!Q65*2)+MIN((S214/'3. Cost_of_Service_Parameters'!Q65),(S214+S220)))) -> -4721.07923 | U221: =IF(ISERROR(-(U215/('3. Cost_of_Service_Parameters'!S65*2)+MIN((U214/'3. Cost_of_Service_Parameters'!S65),(U214+U220)))), 0, -(U215/('3. Cost_of_Service_Parameters'!S65*2)+MIN((U214/'3. Cost_of_Service_Parameters'!S65),(U214+U220)))) -> -4366.998288 | W221: =IF(ISERROR(-(W215/('3. Cost_of_Service_Parameters'!U65*2)+MIN((W214/'3. Cost_of_Service_Parameters'!U65),(W214+W220)))), 0, -(W215/('3. Cost_of_Service_Parameters'!U65*2)+MIN((W214/'3. Cost_of_Service_Parameters'!U65),(W214+W220)))) -> -4366.998288
D222: Retirements/Removals (if applicable)
D223: Closing Balance | I223: =I220+I221-I222 -> -4721.07923 | K223: =K220+K221-K222 -> -9442.158459 | M223: =M220+M221-M222 -> -14163.23769 | O223: =O220+O221-O222 -> -18884.31692 | Q223: =Q220+Q221-Q222 -> -23605.39615 | S223: =S220+S221-S222 -> -28326.47538 | U223: =U220+U221-U222 -> -32693.47367 | W223: =W220+W221-W222 -> -37060.47195
C225: Net Book Value
D226: Opening Balance | I226: =I214+I220 -> 0 | K226: =I227 -> 169958.8523 | M226: =K227 -> 165237.773 | O226: =M227 -> 160516.6938 | Q226: =O227 -> 155795.6146 | S226: =Q227 -> 151074.5354 | U226: =S227 -> 146353.4561 | W226: =U227 -> 141986.4578
D227: Closing Balance | I227: =I217+I223 -> 169958.8523 | K227: =K217+K223 -> 165237.773 | M227: =M217+M223 -> 160516.6938 | O227: =O217+O223 -> 155795.6146 | Q227: =Q217+Q223 -> 151074.5354 | S227: =S217+S223 -> 146353.4561 | U227: =U217+U223 -> 141986.4578 | W227: =W217+W223 -> 137619.4595
D228: Incremental CAPEX | I228: =I227 -> 169958.8523 | K228: =AVERAGE(K226:K227) -> 167598.3127 | M228: =AVERAGE(M226:M227) -> 162877.2334 | O228: =AVERAGE(O226:O227) -> 158156.1542 | Q228: =AVERAGE(Q226:Q227) -> 153435.075 | S228: =AVERAGE(S226:S227) -> 148713.9957 | U228: =AVERAGE(U226:U227) -> 144169.957 | W228: =AVERAGE(W226:W227) -> 139802.9587
B231: Net Fixed Assets - Air Insulated Switchgear
C233: Gross Book Value
D234: Opening Balance | K234: =I237 -> 0 | M234: =K237 -> 0 | O234: =M237 -> 0 | Q234: =O237 -> 0 | S234: =Q237 -> 0 | U234: =S237 -> 0 | W234: =U237 -> 0
D235: Capital Additions during year (from ICM Costs) | I235: ='2. ICM_Costs'!G204 -> 0 | K235: ='2. ICM_Costs'!I204 -> 0 | M235: ='2. ICM_Costs'!K266 -> 0 | O235: ='2. ICM_Costs'!M266 -> 0 | Q235: ='2. ICM_Costs'!O266 -> 0 | S235: ='2. ICM_Costs'!Q266 -> 0 | U235: ='2. ICM_Costs'!S266 -> 0 | W235: ='2. ICM_Costs'!U266 -> 0
D236: Retirements/Removals (if applicable)
D237: Closing Balance | I237: =I234+I235-I236 -> 0 | K237: =K234+K235-K236 -> 0 | M237: =M234+M235-M236 -> 0 | O237: =O234+O235-O236 -> 0 | Q237: =Q234+Q235-Q236 -> 0 | S237: =S234+S235-S236 -> 0 | U237: =U234+U235-U236 -> 0 | W237: =W234+W235-W236 -> 0
C239: Accumulated Depreciation
D240: Opening Balance | K240: =I243 -> 0 | M240: =K243 -> 0 | O240: =M243 -> 0 | Q240: =O243 -> 0 | S240: =Q243 -> 0 | U240: =S243 -> 0 | W240: =U243 -> 0
D241: Amortization expense during year | I241: =IF(ISERROR(-(I235/('3. Cost_of_Service_Parameters'!G67)+MIN((I234/'3. Cost_of_Service_Parameters'!G67),(I234+I240)))), 0, -(I235/('3. Cost_of_Service_Parameters'!G67)+MIN((I234/'3. Cost_of_Service_Parameters'!G67),(I234+I240)))) -> 0 | K241: =IF(ISERROR(-(K235/('3. Cost_of_Service_Parameters'!I67*2)+MIN((K234/'3. Cost_of_Service_Parameters'!I67),(K234+K240)))), 0, -(K235/('3. Cost_of_Service_Parameters'!I67*2)+MIN((K234/'3. Cost_of_Service_Parameters'!I67),(K234+K240)))) -> 0 | M241: =IF(ISERROR(-(M235/('3. Cost_of_Service_Parameters'!K67*2)+MIN((M234/'3. Cost_of_Service_Parameters'!K67),(M234+M240)))), 0, -(M235/('3. Cost_of_Service_Parameters'!K67*2)+MIN((M234/'3. Cost_of_Service_Parameters'!K67),(M234+M240)))) -> 0 | O241: =IF(ISERROR(-(O235/('3. Cost_of_Service_Parameters'!M67*2)+MIN((O234/'3. Cost_of_Service_Parameters'!M67),(O234+O240)))), 0, -(O235/('3. Cost_of_Service_Parameters'!M67*2)+MIN((O234/'3. Cost_of_Service_Parameters'!M67),(O234+O240)))) -> 0 | Q241: =IF(ISERROR(-(Q235/('3. Cost_of_Service_Parameters'!O67*2)+MIN((Q234/'3. Cost_of_Service_Parameters'!O67),(Q234+Q240)))), 0, -(Q235/('3. Cost_of_Service_Parameters'!O67*2)+MIN((Q234/'3. Cost_of_Service_Parameters'!O67),(Q234+Q240)))) -> 0 | S241: =IF(ISERROR(-(S235/('3. Cost_of_Service_Parameters'!Q67*2)+MIN((S234/'3. Cost_of_Service_Parameters'!Q67),(S234+S240)))), 0, -(S235/('3. Cost_of_Service_Parameters'!Q67*2)+MIN((S234/'3. Cost_of_Service_Parameters'!Q67),(S234+S240)))) -> 0 | U241: =IF(ISERROR(-(U235/('3. Cost_of_Service_Parameters'!S67*2)+MIN((U234/'3. Cost_of_Service_Parameters'!S67),(U234+U240)))), 0, -(U235/('3. Cost_of_Service_Parameters'!S67*2)+MIN((U234/'3. Cost_of_Service_Parameters'!S67),(U234+U240)))) -> 0 | W241: =IF(ISERROR(-(W235/('3. Cost_of_Service_Parameters'!U67*2)+MIN((W234/'3. Cost_of_Service_Parameters'!U67),(W234+W240)))), 0, -(W235/('3. Cost_of_Service_Parameters'!U67*2)+MIN((W234/'3. Cost_of_Service_Parameters'!U67),(W234+W240)))) -> 0
D242: Retirements/Removals (if applicable)
D243: Closing Balance | I243: =I240+I241-I242 -> 0 | K243: =K240+K241-K242 -> 0 | M243: =M240+M241-M242 -> 0 | O243: =O240+O241-O242 -> 0 | Q243: =Q240+Q241-Q242 -> 0 | S243: =S240+S241-S242 -> 0 | U243: =U240+U241-U242 -> 0 | W243: =W240+W241-W242 -> 0
C245: Net Book Value
D246: Opening Balance | I246: =I234+I240 -> 0 | K246: =I247 -> 0 | M246: =K247 -> 0 | O246: =M247 -> 0 | Q246: =O247 -> 0 | S246: =Q247 -> 0 | U246: =S247 -> 0 | W246: =U247 -> 0
D247: Closing Balance | I247: =I237+I243 -> 0 | K247: =K237+K243 -> 0 | M247: =M237+M243 -> 0 | O247: =O237+O243 -> 0 | Q247: =Q237+Q243 -> 0 | S247: =S237+S243 -> 0 | U247: =U237+U243 -> 0 | W247: =W237+W243 -> 0
D248: Incremental CAPEX | I248: =I247 -> 0 | K248: =AVERAGE(K246:K247) -> 0 | M248: =AVERAGE(M246:M247) -> 0 | O248: =AVERAGE(O246:O247) -> 0 | Q248: =AVERAGE(Q246:Q247) -> 0 | S248: =AVERAGE(S246:S247) -> 0 | U248: =AVERAGE(U246:U247) -> 0 | W248: =AVERAGE(W246:W247) -> 0
B251: Net Fixed Assets - Solid Dielectric Switchgear
C253: Gross Book Value
D254: Opening Balance | K254: =I257 -> 0 | M254: =K257 -> 0 | O254: =M257 -> 0 | Q254: =O257 -> 0 | S254: =Q257 -> 0 | U254: =S257 -> 0 | W254: =U257 -> 0
D255: Capital Additions during year (from ICM Costs) | I255: ='2. ICM_Costs'!G206 -> 0 | K255: ='2. ICM_Costs'!I206 -> 0 | M255: ='2. ICM_Costs'!K286 -> 0 | O255: ='2. ICM_Costs'!M286 -> 0 | Q255: ='2. ICM_Costs'!O286 -> 0 | S255: ='2. ICM_Costs'!Q286 -> 0 | U255: ='2. ICM_Costs'!S286 -> 0 | W255: ='2. ICM_Costs'!U286 -> 0
D256: Retirements/Removals (if applicable)
D257: Closing Balance | I257: =I254+I255-I256 -> 0 | K257: =K254+K255-K256 -> 0 | M257: =M254+M255-M256 -> 0 | O257: =O254+O255-O256 -> 0 | Q257: =Q254+Q255-Q256 -> 0 | S257: =S254+S255-S256 -> 0 | U257: =U254+U255-U256 -> 0 | W257: =W254+W255-W256 -> 0
C259: Accumulated Depreciation
D260: Opening Balance | K260: =I263 -> 0 | M260: =K263 -> 0 | O260: =M263 -> 0 | Q260: =O263 -> 0 | S260: =Q263 -> 0 | U260: =S263 -> 0 | W260: =U263 -> 0
D261: Amortization expense during year | I261: =IF(ISERROR(-(I255/('3. Cost_of_Service_Parameters'!G69)+MIN((I254/'3. Cost_of_Service_Parameters'!G69),(I254+I260)))), 0, -(I255/('3. Cost_of_Service_Parameters'!G69)+MIN((I254/'3. Cost_of_Service_Parameters'!G69),(I254+I260)))) -> 0 | K261: =IF(ISERROR(-(K255/('3. Cost_of_Service_Parameters'!I69*2)+MIN((K254/'3. Cost_of_Service_Parameters'!I69),(K254+K260)))), 0, -(K255/('3. Cost_of_Service_Parameters'!I69*2)+MIN((K254/'3. Cost_of_Service_Parameters'!I69),(K254+K260)))) -> 0 | M261: =IF(ISERROR(-(M255/('3. Cost_of_Service_Parameters'!K69*2)+MIN((M254/'3. Cost_of_Service_Parameters'!K69),(M254+M260)))), 0, -(M255/('3. Cost_of_Service_Parameters'!K69*2)+MIN((M254/'3. Cost_of_Service_Parameters'!K69),(M254+M260)))) -> 0 | O261: =IF(ISERROR(-(O255/('3. Cost_of_Service_Parameters'!M69*2)+MIN((O254/'3. Cost_of_Service_Parameters'!M69),(O254+O260)))), 0, -(O255/('3. Cost_of_Service_Parameters'!M69*2)+MIN((O254/'3. Cost_of_Service_Parameters'!M69),(O254+O260)))) -> 0 | Q261: =IF(ISERROR(-(Q255/('3. Cost_of_Service_Parameters'!O69*2)+MIN((Q254/'3. Cost_of_Service_Parameters'!O69),(Q254+Q260)))), 0, -(Q255/('3. Cost_of_Service_Parameters'!O69*2)+MIN((Q254/'3. Cost_of_Service_Parameters'!O69),(Q254+Q260)))) -> 0 | S261: =IF(ISERROR(-(S255/('3. Cost_of_Service_Parameters'!Q69*2)+MIN((S254/'3. Cost_of_Service_Parameters'!Q69),(S254+S260)))), 0, -(S255/('3. Cost_of_Service_Parameters'!Q69*2)+MIN((S254/'3. Cost_of_Service_Parameters'!Q69),(S254+S260)))) -> 0 | U261: =IF(ISERROR(-(U255/('3. Cost_of_Service_Parameters'!S69*2)+MIN((U254/'3. Cost_of_Service_Parameters'!S69),(U254+U260)))), 0, -(U255/('3. Cost_of_Service_Parameters'!S69*2)+MIN((U254/'3. Cost_of_Service_Parameters'!S69),(U254+U260)))) -> 0 | W261: =IF(ISERROR(-(W255/('3. Cost_of_Service_Parameters'!U69*2)+MIN((W254/'3. Cost_of_Service_Parameters'!U69),(W254+W260)))), 0, -(W255/('3. Cost_of_Service_Parameters'!U69*2)+MIN((W254/'3. Cost_of_Service_Parameters'!U69),(W254+W260)))) -> 0
D262: Retirements/Removals (if applicable)
D263: Closing Balance | I263: =I260+I261-I262 -> 0 | K263: =K260+K261-K262 -> 0 | M263: =M260+M261-M262 -> 0 | O263: =O260+O261-O262 -> 0 | Q263: =Q260+Q261-Q262 -> 0 | S263: =S260+S261-S262 -> 0 | U263: =U260+U261-U262 -> 0 | W263: =W260+W261-W262 -> 0
C265: Net Book Value
D266: Opening Balance | I266: =I254+I260 -> 0 | K266: =I267 -> 0 | M266: =K267 -> 0 | O266: =M267 -> 0 | Q266: =O267 -> 0 | S266: =Q267 -> 0 | U266: =S267 -> 0 | W266: =U267 -> 0
D267: Closing Balance | I267: =I257+I263 -> 0 | K267: =K257+K263 -> 0 | M267: =M257+M263 -> 0 | O267: =O257+O263 -> 0 | Q267: =Q257+Q263 -> 0 | S267: =S257+S263 -> 0 | U267: =U257+U263 -> 0 | W267: =W257+W263 -> 0
D268: Incremental CAPEX | I268: =I267 -> 0 | K268: =AVERAGE(K266:K267) -> 0 | M268: =AVERAGE(M266:M267) -> 0 | O268: =AVERAGE(O266:O267) -> 0 | Q268: =AVERAGE(Q266:Q267) -> 0 | S268: =AVERAGE(S266:S267) -> 0 | U268: =AVERAGE(U266:U267) -> 0 | W268: =AVERAGE(W266:W267) -> 0
B271: Net Fixed Assets - UG Cable Injection
C273: Gross Book Value
D274: Opening Balance | K274: =I277 -> 0 | M274: =K277 -> 0 | O274: =M277 -> 0 | Q274: =O277 -> 0 | S274: =Q277 -> 0 | U274: =S277 -> 0 | W274: =U277 -> 0
... 60 more rows

Sheet 5. UCC_Calculation
A18: Sheet 6: CCA For PILs Calculation
A20: UCC/Class 47 | D20: ='2. ICM_Costs'!G18 -> 2019
D21: ='2. ICM_Costs'!G19 -> Audited Actual
A23: Opening UCC | D23: 0
A24: Capital Additions | D24: 4505770.27
A25: Retirements/Removals (if applicable)
A26: UCC Full Year | D26: =SUM(D23:D24)-D25 -> 4505770.27
A29: CCA Rate Class | D29: ='3. Cost_of_Service_Parameters'!G83 -> 47
A30: CCA Rate | D30: ='3. Cost_of_Service_Parameters'!G84 -> 0.08
A31: CCA | D31: =D26*D30 -> 360461.6216
A32: Closing UCC | D32: =IF((D26-D31)<0, 0, D26-D31) -> 4145308.648
A34: UCC/Class 1 | D34: =D20 -> 2019
D35: Audited Actual
A37: Opening UCC | D37: 0
A38: Capital Additions RTU's
A39: Retirements/Removals (if applicable)
A40: UCC Full Year | D40: =SUM(D37:D38)-D39 -> 0
A43: CCA Rate Class | D43: 1
A44: CCA Rate | D44: 0.04
A45: CCA | D45: =D40*D44 -> 0
A46: Closing UCC | D46: =IF((D40-D45)<0, 0, D40-D45) -> 0

Sheet 6. ICMIRR
A11: Sheet 6: | C11: Incremental Capital Adjustment
I24: 2019 ICM EB-2018-0016
C26: Return on Rate Base
C27: Incremental Capital CAPEX | F27: 4505770.27 | G27: B | K27: 7500000
C28: Depreciation Expense | F28: =-'4. ICM_Assets_and_Rate_Base'!I357 -> 130614.5223 | G28: C | K28: 198490
C29: Incremental Capital CAPEX to be included in Rate Base | F29: =F27-F28/2 -> 4440463.009 | G29: D = B - C/2 | K29: =K27-K28/2 -> 7400755
C31: Deemed ShortTerm Debt % | D31: ='3. Cost_of_Service_Parameters'!G22 -> 0.04 | E31: E | F31: =F29*D31 -> 177618.5204 | G31: G = D * E | I31: 0.04 | K31: =K29*I31 -> 296030.2
C32: Deemed Long Term Debt % | D32: ='3. Cost_of_Service_Parameters'!G23 -> 0.56 | E32: F | F32: =F29*D32 -> 2486659.285 | G32: H = D * F | I32: 0.56 | K32: =K29*I32 -> 4144422.8
C34: Short Term Interest | D34: ='3. Cost_of_Service_Parameters'!G29 -> 0.0208 | E34: I | F34: =F31*D34 -> 3694.465223 | G34: K = G * I | I34: 0.0208 | K34: =K31*I34 -> 6157.42816
C35: Long Term Interest | D35: ='3. Cost_of_Service_Parameters'!G30 -> 0.050914 | E35: J | F35: =F32*D35 -> 126605.7708 | G35: L = H * J | I35: 0.0509 | K35: =K32*I35 -> 210951.1205
C37: Return on Rate Base - Interest | F37: =SUM(F34:F35) -> 130300.2361 | G37: M = K + L | K37: =SUM(K34:K35) -> 217108.5487
C40: Deemed Equity % | D40: ='3. Cost_of_Service_Parameters'!G24 -> 0.4 | E40: N | F40: =F29*D40 -> 1776185.204 | G40: P = D * N | I40: 0.4 | K40: =K29*I40 -> 2960302
C42: Return on Rate Base -Equity | D42: ='3. Cost_of_Service_Parameters'!G31 -> 0.0893 | E42: O | F42: =F40*D42 -> 158613.3387 | G42: Q = P * O | I42: 0.0893 | K42: =K40*I42 -> 264354.9686
C44: Return on Rate Base - Total | F44: =F37+F42 -> 288913.5747 | G44: R = M + Q | K44: =K37+K42 -> 481463.5173
C48: Amortization Expense
C50: Amortization Expense - Incremental | E50: C | F50: =F28 -> 130614.5223 | G50: S | K50: =K28 -> 198490
C53: Grossed up PIL's
C55: Regulatory Taxable Income | E55: O | F55: =F42 -> 158613.3387 | G55: T | K55: =K42 -> 264354.9686
C57: Add Back Amortization Expense | E57: S | F57: =F50 -> 130614.5223 | G57: U | K57: =K50 -> 198490
C59: Deduct CCA | F59: ='5. UCC_Calculation'!D31+'5. UCC_Calculation'!D45 -> 360461.6216 | G59: V | K59: 599853.0268
C61: Incremental Taxable Income | F61: =F55+F57-F59 -> -71233.76066 | G61: W = T + U - V | K61: =K55+K57-K59 -> -137008.0582
C63: Current Tax Rate (F1.1 Z-Factor Tax Changes) | D63: ='3. Cost_of_Service_Parameters'!G40 -> 0.265 | E63: X | I63: 0.265
C65: PIL's Before Gross Up | F65: =F61*D63 -> -18876.94657 | G65: Y = W * X | K65: =K61*I63 -> -36307.13541
C67: Incremental Grossed Up PIL's | F67: =F65/(1-D63) -> -25682.92051 | G67: Z = Y / ( 1 - X ) | K67: =K65/(1-I63) -> -49397.46314
C70: Ontario Capital Tax
C71: Incremental Capital CAPEX | F71: =F27 -> 4505770.27 | G71: AA | K71: =K27 -> 7500000
C73: Less : Available Capital Exemption (if any) | F73: 0 | G73: AB | K73: 0
C75: Incremental Capital CAPEX subject to OCT | F75: =F71-F73 -> 4505770.27 | G75: AC = AA - AB | K75: =K71-K73 -> 7500000
C77: Ontario Capital Tax Rate (F1.1 Z-Factor Tax Changes) | D77: 0 | E77: AD
C79: Incremental Ontario Capital Tax | F79: =F75*D77 -> 0 | G79: AE = AC * AD | K79: =K75*I77 -> 0
C82: Incremental Revenue Requirement
C83: Return on Rate Base - Total | E83: Q | F83: =F44 -> 288913.5747 | G83: AF | K83: =K44 -> 481463.5173
C84: Amortization Expense - Total | E84: S | F84: =F50 -> 130614.5223 | G84: AG | K84: =K50 -> 198490
C85: Incremental Grossed Up PIL's | E85: Z | F85: =F67 -> -25682.92051 | G85: AH | K85: =K67 -> -49397.46314
C86: Incremental Ontario Capital Tax | E86: AE | F86: =F79 -> 0 | G86: AI | K86: =K79 -> 0
C88: Incremental Revenue Requirement | F88: =SUM(F83:F86) -> 393845.1765 | G88: AJ = AF + AG + AH + AI | K88: =SUM(K83:K86) -> 630556.0541

Sheet 7. Rate Rider Revs
B13: This worksheet calculates the rate rider revenues.
B17: Sheet 7: ICM Rate Rider Revenues
B22: Prescribed Interest Rates | C22: Approved Deferral and Variance Accounts | D22: CWIP | F22: Date | G22: Year | H22: Quarter | J22: Opening Balance (Principal) | K22: Rate Rider Revenues | L22: Interest Rate | M22: Interest | N22: Principal & Interest (Cumm.) | P22: Board Approved ICM Rate Rider | Q22: Board Approved ICM Rate Rider (Cumm.)
B24: 2018 Q1 | C24: 0.015 | D24: 0.0299 | F24: 2018-01-01 | G24: =YEAR(F24) -> 2018 | H24: =IF(MONTH(F24)=0,"",IF(MONTH(F24)<4,"Q1",IF(MONTH(F24)<7,"Q2",IF(MONTH(F24)<10,"Q3","Q4")))) -> Q1 | I24: =CONCATENATE(G24," ",H24) -> 2018 Q1 | J24: 0 | M24: =ROUND(J24*L24/12,2) -> 0 | N24: =K24+M24 -> 0 | Q24: =P24 -> 0
B25: 2018 Q2 | C25: 0.0189 | D25: 0.0335 | F25: 2018-02-01 | G25: =YEAR(F25) -> 2018 | H25: =IF(MONTH(F25)=0,"",IF(MONTH(F25)<4,"Q1",IF(MONTH(F25)<7,"Q2",IF(MONTH(F25)<10,"Q3","Q4")))) -> Q1 | I25: =CONCATENATE(G25," ",H25) -> 2018 Q1 | J25: =J24+K24 -> 0 | M25: =ROUND(J25*L25/12,2) -> 0 | N25: =N24+K25+M25 -> 0 | Q25: =Q24+P25 -> 0
B26: 2018 Q3 | C26: 0.0189 | D26: 0.0335 | F26: 2018-03-01 | G26: 2018 | H26: Q1 | I26: 2018 Q1 | J26: =J25+K25 -> 0 | M26: 0 | N26: =N25+K26+M26 -> 0 | Q26: =Q25+P26 -> 0
B27: 2018 Q4 | C27: 0.0217 | D27: 0.0335 | F27: 2018-04-01 | G27: 2018 | H27: Q2 | I27: 2018 Q2 | J27: 0 | M27: 0 | N27: 0 | Q27: 0
B28: 2019 Q1 | C28: 0.0245 | D28: 0.0382 | F28: 2018-05-01 | G28: 2018 | H28: Q2 | I28: 2018 Q2 | J28: 0 | M28: 0 | N28: 0 | Q28: 0
B29: 2019 Q2 | C29: 0.0218 | D29: 0.0339 | F29: 2018-06-01 | G29: 2018 | H29: Q2 | I29: 2018 Q2 | J29: 0 | M29: 0 | N29: 0 | Q29: 0
B30: 2019 Q3 | C30: 0.0218 | D30: 0.0288 | F30: 2018-07-01 | G30: 2018 | H30: Q3 | I30: 2018 Q3 | J30: 0 | M30: 0 | N30: 0 | Q30: 0
B31: 2019 Q4 | C31: 0.0218 | D31: 0.0288 | F31: 2018-08-01 | G31: 2018 | H31: Q3 | I31: 2018 Q3 | J31: 0 | M31: 0 | N31: 0 | Q31: 0
B32: 2020 Q1 | C32: 0.0218 | D32: 0.0288 | F32: 2018-09-01 | G32: 2018 | H32: Q3 | I32: 2018 Q3 | J32: 0 | M32: 0 | N32: 0 | Q32: 0
B33: 2020 Q2 | C33: 0.0218 | D33: 0.0248 | F33: 2018-10-01 | G33: 2018 | H33: Q4 | I33: 2018 Q4 | J33: 0 | M33: 0 | N33: 0 | Q33: 0
B34: 2020 Q3 | C34: 0.0057 | D34: 0.0248 | F34: 2018-11-01 | G34: 2018 | H34: Q4 | I34: 2018 Q4 | J34: 0 | M34: 0 | N34: 0 | Q34: 0
B35: 2020 Q4 | C35: 0.0057 | D35: 0.0203 | F35: 2018-12-01 | G35: 2018 | H35: Q4 | I35: 2018 Q4 | J35: 0 | M35: 0 | N35: 0 | Q35: 0
B36: 2021 Q1 | C36: 0.0057 | D36: 0.0203 | F36: 2019-01-01 | G36: 2019 | H36: Q1 | I36: 2019 Q1 | J36: 0 | M36: 0 | N36: 0 | Q36: 0
B37: 2021 Q2 | C37: 0.0057 | D37: 0.0229 | F37: 2019-02-01 | G37: 2019 | H37: Q1 | I37: 2019 Q1 | J37: 0 | M37: 0 | N37: 0 | Q37: 0
B38: 2021 Q3 | C38: 0.0057 | D38: 0.0229 | F38: 2019-03-01 | G38: 2019 | H38: Q1 | I38: 2019 Q1 | J38: 0 | K38: 23599.22 | L38: 0.0245 | M38: 0 | N38: 23599.22 | P38: 52546.33784 | Q38: 52546.33784
B39: 2021 Q4 | C39: 0.0057 | D39: 0.0229 | F39: 2019-04-01 | G39: 2019 | H39: Q2 | I39: 2019 Q2 | J39: 23599.22 | K39: 86525.68 | L39: 0.0218 | M39: 42.87 | N39: 110167.77 | P39: 52546.33784 | Q39: 105092.6757
B40: 2022 Q1 | C40: 0.0057 | D40: 0.0272 | F40: 2019-05-01 | G40: 2019 | H40: Q2 | I40: 2019 Q2 | J40: 110124.9 | K40: 58337.27 | L40: 0.0218 | M40: 200.06 | N40: 168705.1 | P40: 52546.33784 | Q40: 157639.0135
B41: 2022 Q2 | C41: 0.0102 | D41: 0.0331 | F41: 2019-06-01 | G41: 2019 | H41: Q2 | I41: 2019 Q2 | J41: 168462.17 | K41: 51987.72 | L41: 0.0218 | M41: 306.04 | N41: 220998.86 | P41: 52546.33784 | Q41: 210185.3514
B42: 2022 Q3 | C42: 0.022 | D42: 0.0466 | F42: 2019-07-01 | G42: 2019 | H42: Q3 | I42: 2019 Q3 | J42: 220449.89 | K42: 60865.42 | L42: 0.0218 | M42: 400.48 | N42: 282264.76 | P42: 52546.33784 | Q42: 262731.6892
B43: 2022 Q4 | C43: 0.0387 | D43: 0.0501 | F43: 2019-08-01 | G43: 2019 | H43: Q3 | I43: 2019 Q3 | J43: 281315.31 | K43: 55862.37 | L43: 0.0218 | M43: 511.06 | N43: 338638.19 | P43: 52546.33784 | Q43: 315278.0271
B44: 2023 Q1 | C44: 0.0473 | D44: 0.0501 | F44: 2019-09-01 | G44: 2019 | H44: Q3 | I44: 2019 Q3 | J44: 337177.68 | K44: 53651.89 | L44: 0.0218 | M44: 612.54 | N44: 392902.62 | P44: 52546.33784 | Q44: 367824.3649
B45: 2023 Q2 | C45: 0.0498 | D45: 0.0501 | F45: 2019-10-01 | G45: 2019 | H45: Q4 | I45: 2019 Q4 | J45: 390829.57 | K45: 55990.03 | L45: 0.0218 | M45: 710.01 | N45: 449602.66 | P45: 52546.33784 | Q45: 420370.7028
B46: 2023 Q3 | C46: 0.0498 | D46: 0.0501 | F46: 2019-11-01 | G46: 2019 | H46: Q4 | I46: 2019 Q4 | J46: 446819.6 | K46: 54031.12 | L46: 0.0218 | M46: 811.72 | N46: 504445.5 | P46: 52546.33784 | Q46: 472917.0406
B47: 2023 Q4 | C47: 0.0549 | D47: 0.0548 | F47: 2019-12-01 | G47: 2019 | H47: Q4 | I47: 2019 Q4 | J47: 500850.72 | K47: 55285.32 | L47: 0.0218 | M47: 909.88 | N47: 560640.7 | P47: 52546.33784 | Q47: 525463.3784
B48: 2024 Q1 | C48: 0.0549 | D48: 0.0548 | F48: 2020-01-01 | G48: 2020 | H48: Q1 | I48: 2020 Q1 | J48: 556136.04 | K48: 54001.85 | L48: 0.0218 | M48: =ROUND(J48*L48/12,2) -> 1010.31 | N48: =N47+K48+M48 -> 615652.86 | P48: 52546.33784 | Q48: =Q47+P48 -> 578009.7163
B49: 2024 Q2 | C49: 0.0549 | D49: 0.0498 | F49: 2020-02-01 | G49: 2020 | H49: Q1 | I49: 2020 Q1 | J49: 610137.89 | K49: 51872.76 | L49: 0.0218 | M49: 1108.42 | N49: 668634.04 | P49: 52546.33784 | Q49: 630556.0541
B50: 2024 Q3 | C50: 0.052 | D50: 0.0498 | F50: 2020-03-01 | G50: 2020 | H50: Q1 | I50: 2020 Q1 | J50: 662010.65 | K50: 61208.68 | L50: 0.0218 | M50: 1202.65 | N50: 731045.37 | P50: 52546.33784 | Q50: 683102.392
B51: 2024 Q4 | C51: 0.044 | D51: 0.0455 | F51: 2020-04-01 | G51: 2020 | H51: Q2 | I51: 2020 Q2 | J51: 723219.33 | K51: 49455.48 | L51: 0.0218 | M51: 1313.85 | N51: 781814.7 | P51: 52546.33784 | Q51: 735648.7298
B52: 2025 Q1 | C52: 0.0364 | D52: 0.0423 | F52: 2020-05-01 | G52: 2020 | H52: Q2 | I52: 2020 Q2 | J52: 772674.81 | K52: 52778.26 | L52: 0.0218 | M52: 1403.69 | N52: 835996.65 | P52: 52546.33784 | Q52: 788195.0677
B53: 2025 Q2 | C53: 0.0316 | D53: =D52 -> 0.0423 | F53: 2020-06-01 | G53: 2020 | H53: Q2 | I53: 2020 Q2 | J53: 825453.07 | K53: 55098.84 | L53: 0.0218 | M53: 1499.57 | N53: 892595.06 | P53: 52546.33784 | Q53: 840741.4055
B54: 2025 Q3 | C54: 0.0291 | D54: =D53 -> 0.0423 | F54: 2020-07-01 | G54: 2020 | H54: Q3 | I54: 2020 Q3 | J54: 880551.91 | K54: 56520.59 | L54: 0.0057 | M54: 418.26 | N54: 949533.91 | P54: 52546.33784 | Q54: 893287.7434
B55: 2025 Q4 | C55: =C54 -> 0.0291 | D55: 0.0423 | F55: 2020-08-01 | G55: 2020 | H55: Q3 | I55: 2020 Q3 | J55: 937072.5 | K55: 54846.51 | L55: 0.0057 | M55: 445.11 | N55: 1004825.53 | P55: 52546.33784 | Q55: 945834.0812
B56: 2026 Q1 | C56: 0.0255 | D56: 0.0423 | F56: 2020-09-01 | G56: 2020 | H56: Q3 | I56: 2020 Q3 | J56: 991919.01 | K56: 54853.34 | L56: 0.0057 | M56: 471.16 | N56: 1060150.03 | P56: 52546.33784 | Q56: 998380.419
B57: 2026 Q2 | C57: 0.0255 | D57: 0.0423 | F57: 2020-10-01 | G57: 2020 | H57: Q4 | I57: 2020 Q4 | J57: 1046772.35 | K57: 55462.2 | L57: 0.0057 | M57: 497.22 | N57: 1116109.45 | P57: 52546.33784 | Q57: 1050926.757
B58: 2026 Q3 | C58: 0.0255 | D58: 0.0423 | F58: 2020-11-01 | G58: 2020 | H58: Q4 | I58: 2020 Q4 | J58: 1102234.55 | K58: 52928.39 | L58: 0.0057 | M58: 523.56 | N58: 1169561.4 | P58: 52546.33784 | Q58: 1103473.095
B59: 2026 Q4 | C59: 0.0255 | D59: 0.0423 | F59: 2020-12-01 | G59: 2020 | H59: Q4 | I59: 2020 Q4 | J59: 1155162.94 | K59: 56739.18 | L59: 0.0057 | M59: 548.7 | N59: 1226849.28 | P59: 52546.33784 | Q59: 1156019.433
F60: 2021-01-01 | G60: 2021 | H60: =IF(MONTH(F60)=0,"",IF(MONTH(F60)<4,"Q1",IF(MONTH(F60)<7,"Q2",IF(MONTH(F60)<10,"Q3","Q4")))) -> Q1 | I60: =CONCATENATE(G60," ",H60) -> 2021 Q1 | J60: =J59+K59 -> 1211902.12 | K60: 51624.79 | L60: 0.0057 | M60: =ROUND(J60*L60/12,2) -> 575.65 | N60: =N59+K60+M60 -> 1279049.72 | P60: 52546.33784 | Q60: =Q59+P60 -> 1208565.77
F61: 2021-02-01 | G61: 2021 | H61: Q1 | I61: 2021 Q1 | J61: 1263526.91 | K61: 51674.99 | L61: 0.0057 | M61: 600.18 | N61: 1331324.89 | P61: 52546.33784 | Q61: 1261112.108
F62: 2021-03-01 | G62: 2021 | H62: Q1 | I62: 2021 Q1 | J62: 1315201.9 | K62: 57823.29 | L62: 0.0057 | M62: 624.72 | N62: 1389772.9 | P62: 52546.33784 | Q62: 1313658.446
F63: 2021-04-01 | G63: 2021 | H63: Q2 | I63: 2021 Q2 | J63: 1373025.19 | K63: 47350.63 | L63: 0.0057 | M63: 652.19 | N63: 1437775.72 | P63: 52546.33784 | Q63: 1366204.784
F64: 2021-05-01 | G64: 2021 | H64: Q2 | I64: 2021 Q2 | J64: 1420375.82 | K64: 55111.97 | L64: 0.0057 | M64: 674.68 | N64: 1493562.37 | P64: 52546.33784 | Q64: 1418751.122
F65: 2021-06-01 | G65: 2021 | H65: Q2 | I65: 2021 Q2 | J65: 1475487.79 | K65: 58094.91 | L65: 0.0057 | M65: 700.86 | N65: 1552358.14 | P65: 52546.33784 | Q65: 1471297.46
F66: 2021-07-01 | G66: 2021 | H66: Q3 | I66: 2021 Q3 | J66: 1533582.7 | K66: 54875.01 | L66: 0.0057 | M66: 728.45 | N66: 1607961.6 | P66: 52546.33784 | Q66: 1523843.797
F67: 2021-08-01 | G67: 2021 | H67: Q3 | I67: 2021 Q3 | J67: 1588457.71 | K67: 57050.61 | L67: 0.0057 | M67: 754.52 | N67: 1665766.73 | P67: 52546.33784 | Q67: 1576390.135
F68: 2021-09-01 | G68: 2021 | H68: Q3 | I68: 2021 Q3 | J68: 1645508.32 | K68: 54219.39 | L68: 0.0057 | M68: 781.62 | N68: 1720767.74 | P68: 52546.33784 | Q68: 1628936.473
F69: 2021-10-01 | G69: 2021 | H69: Q4 | I69: 2021 Q4 | J69: 1699727.71 | K69: 54040.8 | L69: 0.0057 | M69: 807.37 | N69: 1775615.91 | P69: 52546.33784 | Q69: 1681482.811
F70: 2021-11-01 | G70: 2021 | H70: Q4 | I70: 2021 Q4 | J70: 1753768.51 | K70: 55584.04 | L70: 0.0057 | M70: 833.04 | N70: 1832032.99 | P70: 52546.33784 | Q70: 1734029.149
F71: 2021-12-01 | G71: 2021 | H71: Q4 | I71: 2021 Q4 | J71: 1809352.55 | K71: 55538.5 | L71: 0.0057 | M71: 859.44 | N71: 1888430.93 | P71: 52546.33784 | Q71: 1786575.487
F72: 2022-01-01 | G72: 2022 | H72: =IF(MONTH(F72)=0,"",IF(MONTH(F72)<4,"Q1",IF(MONTH(F72)<7,"Q2",IF(MONTH(F72)<10,"Q3","Q4")))) -> Q1 | I72: =CONCATENATE(G72," ",H72) -> 2022 Q1 | J72: =J71+K71 -> 1864891.05 | K72: 52995.84 | L72: 0.0057 | M72: =ROUND(J72*L72/12,2) -> 885.82 | N72: =N71+K72+M72 -> 1942312.59 | P72: 52546.33784 | Q72: =Q71+P72 -> 1839121.825
F73: 2022-02-01 | G73: 2022 | H73: Q1 | I73: 2022 Q1 | J73: 1917886.89 | K73: 52948.72 | L73: 0.0057 | M73: 911 | N73: 1996172.31 | P73: 52546.33784 | Q73: 1891668.162
F74: 2022-03-01 | G74: 2022 | H74: Q1 | I74: 2022 Q1 | J74: 1970835.61 | K74: 59524.58 | L74: 0.0057 | M74: 936.15 | N74: 2056633.04 | P74: 52546.33784 | Q74: 1944214.5
F75: 2022-04-01 | G75: 2022 | H75: Q2 | I75: 2022 Q2 | J75: 2030360.19 | K75: 51626.07 | L75: 0.0102 | M75: 1725.81 | N75: 2109984.92 | P75: 52546.33784 | Q75: 1996760.838
F76: 2022-05-01 | G76: 2022 | H76: Q2 | I76: 2022 Q2 | J76: 2081986.26 | K76: 56915.67 | L76: 0.0102 | M76: 1769.69 | N76: 2168670.28 | P76: 52546.33784 | Q76: 2049307.176
F77: 2022-06-01 | G77: 2022 | H77: Q2 | I77: 2022 Q2 | J77: 2138901.93 | K77: 56524.97 | L77: 0.0102 | M77: 1818.07 | N77: 2227013.32 | P77: 52546.33784 | Q77: 2101853.514
F78: 2022-07-01 | G78: 2022 | H78: Q3 | I78: 2022 Q3 | J78: 2195426.9 | K78: 56452.49 | L78: 0.022 | M78: 4024.95 | N78: 2287490.76 | P78: 52546.33784 | Q78: 2154399.852
F79: 2022-08-01 | G79: 2022 | H79: Q3 | I79: 2022 Q3 | J79: 2251879.39 | K79: 58406.84 | L79: 0.022 | M79: 4128.45 | N79: 2350026.05 | P79: 52546.33784 | Q79: 2206946.189
F80: 2022-09-01 | G80: 2022 | H80: Q3 | I80: 2022 Q3 | J80: 2310286.23 | K80: 52298.6 | L80: 0.022 | M80: 4235.52 | N80: 2406560.17 | P80: 52546.33784 | Q80: 2259492.527
F81: 2022-10-01 | G81: 2022 | H81: Q4 | I81: 2022 Q4 | J81: 2362584.83 | K81: 47756.94 | L81: 0.0387 | M81: 7619.34 | N81: 2461936.45 | P81: 52546.33784 | Q81: 2312038.865
F82: 2022-11-01 | G82: 2022 | H82: Q4 | I82: 2022 Q4 | J82: 2410341.77 | K82: 51801.57 | L82: 0.0387 | M82: 7773.35 | N82: 2521511.37 | P82: 52546.33784 | Q82: 2364585.203
F83: 2022-12-01 | G83: 2022 | H83: Q4 | I83: 2022 Q4 | J83: 2462143.34 | K83: 57550.98 | L83: 0.0387 | M83: 7940.41 | N83: 2587002.76 | P83: 52546.33784 | Q83: 2417131.541
F84: 2023-01-01 | G84: =YEAR(F84) -> 2023 | H84: =IF(MONTH(F84)=0,"",IF(MONTH(F84)<4,"Q1",IF(MONTH(F84)<7,"Q2",IF(MONTH(F84)<10,"Q3","Q4")))) -> Q1 | I84: =CONCATENATE(G84," ",H84) -> 2023 Q1 | J84: =J83+K83 -> 2519694.32 | K84: 54636.7 | L84: 0.0473 | M84: =ROUND(J84*L84/12,2) -> 9931.8 | N84: =N83+K84+M84 -> 2651571.26 | P84: 52546.33784 | Q84: =Q83+P84 -> 2469677.879
F85: 2023-02-01 | G85: 2023 | H85: Q1 | I85: 2023 Q1 | J85: 2574331.02 | K85: 49857.48 | L85: 0.0473 | M85: 10147.15 | N85: 2711575.89 | P85: 52546.33784 | Q85: 2522224.217
F86: 2023-03-01 | G86: 2023 | H86: Q1 | I86: 2023 Q1 | J86: 2624188.5 | K86: 56391.42 | L86: 0.0473 | M86: 10343.68 | N86: 2778310.99 | P86: 52546.33784 | Q86: 2574770.554
F87: 2023-04-01 | G87: 2023 | H87: Q2 | I87: 2023 Q2 | J87: 2680579.92 | K87: 52926.9 | L87: 0.0498 | M87: 11124.41 | N87: 2842362.3 | P87: 52546.33784 | Q87: 2627316.892
F88: 2023-05-01 | G88: 2023 | H88: Q2 | I88: 2023 Q2 | J88: 2733506.82 | K88: 54409.73 | L88: 0.0498 | M88: 11344.05 | N88: 2908116.08 | P88: 52546.33784 | Q88: 2679863.23
F89: 2023-06-01 | G89: 2023 | H89: Q2 | I89: 2023 Q2 | J89: 2787916.55 | K89: 55124.76 | L89: 0.0498 | M89: 11569.85 | N89: 2974810.69 | P89: 52546.33784 | Q89: 2732409.568
F90: 2023-07-01 | G90: 2023 | H90: Q3 | I90: 2023 Q3 | J90: 2843041.31 | K90: 56064.81 | L90: 0.0498 | M90: 11798.62 | N90: 3042674.12 | P90: 52546.33784 | Q90: 2784955.906
F91: 2023-08-01 | G91: 2023 | H91: Q3 | I91: 2023 Q3 | J91: 2899106.12 | K91: 54995.51 | L91: 0.0498 | M91: 12031.29 | N91: 3109700.92 | P91: 52546.33784 | Q91: 2837502.244
F92: 2023-09-01 | G92: 2023 | H92: Q3 | I92: 2023 Q3 | J92: 2954101.63 | K92: 54322.32 | L92: 0.0498 | M92: 12259.52 | N92: 3176282.76 | P92: 52546.33784 | Q92: 2890048.581
F93: 2023-10-01 | G93: 2023 | H93: Q4 | I93: 2023 Q4 | J93: 3008423.95 | K93: 54480.57 | L93: 0.0549 | M93: 13763.54 | N93: 3244526.87 | P93: 52546.33784 | Q93: 2942594.919
F94: 2023-11-01 | G94: 2023 | H94: Q4 | I94: 2023 Q4 | J94: 3062904.52 | K94: 52485.83 | L94: 0.0549 | M94: 14012.79 | N94: 3311025.49 | P94: 52546.33784 | Q94: 2995141.257
F95: 2023-12-01 | G95: 2023 | H95: Q4 | I95: 2023 Q4 | J95: 3115390.35 | K95: 55209.27 | L95: 0.0549 | M95: 14252.91 | N95: 3380487.67 | P95: 52546.33784 | Q95: 3047687.595
F96: 2024-01-01 | G96: =YEAR(F96) -> 2024 | H96: =IF(MONTH(F96)=0,"",IF(MONTH(F96)<4,"Q1",IF(MONTH(F96)<7,"Q2",IF(MONTH(F96)<10,"Q3","Q4")))) -> Q1 | I96: =CONCATENATE(G96," ",H96) -> 2024 Q1 | J96: =J95+K95 -> 3170599.62 | K96: 55295.45 | L96: 0.0549 | M96: =ROUND(J96*L96/12,2) -> 14505.49 | N96: =N95+K96+M96 -> 3450288.61 | P96: 52546.33784 | Q96: =Q95+P96 -> 3100233.933
F97: 2024-02-01 | G97: 2024 | H97: Q1 | I97: 2024 Q1 | J97: 3225895.07 | K97: 51607.48 | L97: 0.0549 | M97: 14758.47 | N97: 3516654.56 | P97: 52546.33784 | Q97: 3152780.271
F98: 2024-03-01 | G98: 2024 | H98: Q1 | I98: 2024 Q1 | J98: 3277502.55 | K98: 54032.4 | L98: 0.0549 | M98: 14994.57 | N98: 3585681.53 | P98: 52546.33784 | Q98: 3205326.609
F99: 2024-04-01 | G99: 2024 | H99: Q2 | I99: 2024 Q2 | J99: 3331534.95 | K99: 53691.79 | L99: 0.0549 | M99: 15241.77 | N99: 3654615.09 | P99: 52546.33784 | Q99: 3257872.946
F100: 2024-05-01 | G100: 2024 | H100: Q2 | I100: 2024 Q2 | J100: 3385226.74 | K100: 54679.93 | L100: 0.0549 | M100: 15487.41 | N100: 3724782.43 | P100: 52546.33784 | Q100: 3310419.284
F101: 2024-06-01 | G101: 2024 | H101: Q2 | I101: 2024 Q2 | J101: 3439906.67 | K101: 55103.22 | L101: 0.0549 | M101: 15737.57 | N101: 3795623.22 | P101: 52546.33784 | Q101: 3362965.622
F102: 2024-07-01 | G102: 2024 | H102: Q3 | I102: 2024 Q3 | J102: 3495009.89 | K102: 57633.1 | L102: 0.052 | M102: 15145.04 | N102: 3868401.36 | P102: 52546.33784 | Q102: 3415511.96
F103: 2024-08-01 | G103: 2024 | H103: Q3 | I103: 2024 Q3 | J103: 3552642.99 | K103: 56950.01 | L103: 0.052 | M103: 15394.79 | N103: 3940746.16 | P103: 52546.33784 | Q103: 3468058.298
F104: 2024-09-01 | G104: 2024 | H104: Q3 | I104: 2024 Q3 | J104: 3609593 | K104: 53726.44 | L104: 0.052 | M104: 15641.57 | N104: 4010114.17 | P104: 52546.33784 | Q104: 3520604.636
F105: 2024-10-01 | G105: 2024 | H105: Q4 | I105: 2024 Q4 | J105: 3663319.44 | K105: 54672.97 | L105: 0.044 | M105: 13432.17 | N105: 4078219.31 | P105: 52546.33784 | Q105: 3573150.973
F106: 2024-11-01 | G106: 2024 | H106: Q4 | I106: 2024 Q4 | J106: 3717992.41 | K106: 52217.42 | L106: 0.044 | M106: 13632.64 | N106: 4144069.37 | P106: 52546.33784 | Q106: 3625697.311
F107: 2024-12-01 | G107: 2024 | H107: Q4 | I107: 2024 Q4 | J107: 3770209.83 | K107: 55401.25 | L107: 0.044 | M107: 13824.1 | N107: 4213294.72 | P107: 52546.33784 | Q107: 3678243.649
F108: 2025-01-01 | G108: =YEAR(F108) -> 2025 | H108: =IF(MONTH(F108)=0,"",IF(MONTH(F108)<4,"Q1",IF(MONTH(F108)<7,"Q2",IF(MONTH(F108)<10,"Q3","Q4")))) -> Q1 | I108: =CONCATENATE(G108," ",H108) -> 2025 Q1 | J108: =J107+K107 -> 3825611.08 | K108: 55166.68 | L108: 0.0364 | M108: =ROUND(J108*L108/12,2) -> 11604.35 | N108: =N107+K108+M108 -> 4280065.75 | P108: 52546.33784 | Q108: =Q107+P108 -> 3730789.987
F109: 2025-02-01 | G109: 2025 | H109: Q1 | I109: 2025 Q1 | J109: 3880777.76 | K109: 50613.88 | L109: 0.0364 | M109: 11771.69 | N109: 4342451.32 | P109: 52546.33784 | Q109: 3783336.325
F110: 2025-03-01 | G110: 2025 | H110: Q1 | I110: 2025 Q1 | J110: 3931391.64 | K110: 56765.15 | L110: 0.0364 | M110: 11925.22 | N110: 4411141.69 | P110: 52546.33784 | Q110: 3835882.663
F111: 2025-04-01 | G111: 2025 | H111: Q2 | I111: 2025 Q2 | J111: 3988156.79 | K111: 52800.97 | L111: 0.0316 | M111: 10502.15 | N111: 4474444.81 | P111: 52546.33784 | Q111: 3888429.001
F112: 2025-05-01 | G112: 2025 | H112: Q2 | I112: 2025 Q2 | J112: 4040957.76 | K112: 55284.76 | L112: 0.0316 | M112: 10641.19 | N112: 4540370.76 | P112: 52546.33784 | Q112: 3940975.338
F113: 2025-06-01 | G113: 2025 | H113: Q2 | I113: 2025 Q2 | J113: 4096242.52 | K113: 56436.16 | L113: 0.0316 | M113: 10786.77 | N113: 4607593.69 | P113: 52546.33784 | Q113: 3993521.676
F114: 2025-07-01 | G114: 2025 | H114: Q3 | I114: 2025 Q3 | J114: 4152678.68 | K114: 59640.07 | L114: 0.0291 | M114: 10070.25 | N114: 4677304.01 | P114: 52546.33784 | Q114: 4046068.014
F115: 2025-08-01 | G115: 2025 | H115: Q3 | I115: 2025 Q3 | J115: 4212318.75 | K115: 56522.66 | L115: 0.0291 | M115: 10214.87 | N115: 4744041.54 | P115: 52546.33784 | Q115: 4098614.352
F116: 2025-09-01 | G116: 2025 | H116: Q3 | I116: 2025 Q3 | J116: 4268841.41 | K116: 52519.46 | L116: 0.0291 | M116: 10351.94 | N116: 4806912.94 | P116: 52546.33784 | Q116: 4151160.69
F117: 2025-10-01 | G117: 2025 | H117: Q4 | I117: 2025 Q4 | J117: 4321360.87 | K117: 56161.57 | L117: 0.0291 | M117: 10479.3 | N117: 4873553.81 | P117: 52546.33784 | Q117: 4203707.028
F118: 2025-11-01 | G118: 2025 | H118: Q4 | I118: 2025 Q4 | J118: 4377522.44 | K118: 52792.55 | L118: 0.0291 | M118: 10615.49 | N118: 4936961.85 | P118: 52546.33784 | Q118: 4256253.365
F119: 2025-12-01 | G119: 2025 | H119: Q4 | I119: 2025 Q4 | J119: 4430314.99 | K119: 57500.9 | L119: 0.0291 | M119: 10743.51 | N119: 5005206.26 | P119: 52546.33784 | Q119: 4308799.703
F120: 2026-01-01 | G120: =YEAR(F120) -> 2026 | H120: =IF(MONTH(F120)=0,"",IF(MONTH(F120)<4,"Q1",IF(MONTH(F120)<7,"Q2",IF(MONTH(F120)<10,"Q3","Q4")))) -> Q1 | I120: =CONCATENATE(G120," ",H120) -> 2026 Q1 | J120: =J119+K119 -> 4487815.89 | K120: 55679.50458 | L120: 0.0255 | M120: =ROUND(J120*L120/12,2) -> 9536.61 | N120: =N119+K120+M120 -> 5070422.375 | P120: 52546.33784 | Q120: =Q119+P120 -> 4361346.041
F121: 2026-02-01 | G121: 2026 | H121: Q1 | I121: 2026 Q1 | J121: 4543495.395 | K121: 50977.19275 | L121: 0.0255 | M121: 9654.93 | N121: 5131054.497 | P121: 52546.33784 | Q121: 4413892.379
F122: 2026-03-01 | G122: 2026 | H122: Q1 | I122: 2026 Q1 | J122: 4594472.587 | K122: 55246.39142 | L122: 0.0255 | M122: 9763.25 | N122: 5196064.139 | P122: 52546.33784 | Q122: 4466438.717
F123: 2026-04-01 | G123: 2026 | H123: Q2 | I123: 2026 Q2 | J123: 4649718.979 | K123: 53061.37458 | L123: 0.0255 | M123: 9880.65 | N123: 5259006.163 | P123: 52546.33784 | Q123: 4518985.055
F124: 2026-05-01 | G124: 2026 | H124: Q2 | I124: 2026 Q2 | J124: 4702780.353 | K124: 54494.63818 | L124: 0.0255 | M124: 9993.41 | N124: 5323494.212 | P124: 52546.33784 | Q124: 4571531.392
F125: 2026-06-01 | G125: 2026 | H125: Q2 | I125: 2026 Q2 | J125: 4757274.992 | K125: 54784.3479 | L125: 0.0255 | M125: 10109.21 | N125: 5388387.769 | P125: 52546.33784 | Q125: 4624077.73
F126: 2026-07-01 | G126: 2026 | H126: Q3 | I126: 2026 Q3 | J126: 4812059.339 | K126: 58587.26206 | L126: 0.0255 | M126: 10225.63 | N126: 5457200.661 | P126: 52546.33784 | Q126: 4676624.068
F127: 2026-08-01 | G127: 2026 | H127: Q3 | I127: 2026 Q3 | J127: 4870646.601 | K127: 57359.21107 | L127: 0.0255 | M127: 10350.12 | N127: 5524909.993 | P127: 52546.33784 | Q127: 4729170.406
F128: 2026-09-01 | G128: 2026 | H128: Q3 | I128: 2026 Q3 | J128: 4928005.813 | K128: 54580.504 | L128: 0.0255 | M128: 10472.01 | N128: 5589962.507 | P128: 52546.33784 | Q128: 4781716.744
F129: 2026-10-01 | G129: 2026 | H129: Q4 | I129: 2026 Q4 | J129: 4982586.317 | K129: 54703.92824 | L129: 0.0255 | M129: 10588 | N129: 5655254.435 | P129: 52546.33784 | Q129: 4834263.082
F130: 2026-11-01 | G130: 2026 | H130: Q4 | I130: 2026 Q4 | J130: 5037290.245 | K130: 52925.69992 | L130: 0.0255 | M130: 10704.24 | N130: 5718884.375 | P130: 52546.33784 | Q130: 4886809.42
F131: 2026-12-01 | G131: 2026 | H131: Q4 | I131: 2026 Q4 | J131: 5090215.945 | K131: 55711.10283 | L131: 0.0255 | M131: 10816.71 | N131: 5785412.188 | P131: 52546.33784 | Q131: 4939355.757

Sheet 8. Opex Interest Annual
B13: This worksheet calculates the interest on amortization/depreciation expense, in the absence of monthly data.
B16: Sheet 8: Interest on Amortization (Annual Data)
B21: Year | D21: OM&A | F21: Amortization Expense | H21: Cumulative OM&A and Amortization Expense | J21: Average Cumulative OM&A and Amortization Expense | L21: Average Annual Prescribed Interest Rate for Deferral and Variance Accounts (from Sheet 7) | N21: Simple Interest on OM&A and Amortization Expenses
F22: (from Sheet 6)
B24: 2019 | D24: 0 | F24: =-'4. ICM_Assets_and_Rate_Base'!I357 -> 130614.5223 | H24: =H23+D24+F24 -> 130614.5223 | J24: =(H24+H23)/2 -> 65307.26113 | L24: =AVERAGE('7. Rate Rider Revs'!C28:C31) -> 0.022475 | N24: =J24*L24 -> 1467.780694
B25: 2020 | D25: 0 | F25: =-'4. ICM_Assets_and_Rate_Base'!K357 -> 130614.5223 | H25: =H24+D25+F25 -> 261229.0445 | J25: =(H25+H24)/2 -> 195921.7834 | L25: =AVERAGE('7. Rate Rider Revs'!C32:C35) -> 0.01375 | N25: =J25*L25 -> 2693.924522
B26: 2021 | D26: 0 | F26: =-'4. ICM_Assets_and_Rate_Base'!M357 -> 130614.5223 | H26: 391843.5668 | J26: 326536.3057 | L26: =AVERAGE('7. Rate Rider Revs'!C36:C39) -> 0.0057 | N26: 1861.256942
B27: 2022 | D27: 0 | F27: =-'4. ICM_Assets_and_Rate_Base'!O357 -> 130614.5223 | H27: 522458.0891 | J27: 457150.8279 | L27: =AVERAGE('7. Rate Rider Revs'!C40:C43) -> 0.01915 | N27: 8754.438355
B28: 2023 | D28: 0 | F28: =-'4. ICM_Assets_and_Rate_Base'!Q357 -> 130614.5223 | H28: 653072.6113 | J28: 587765.3502 | L28: =AVERAGE('7. Rate Rider Revs'!C44:C47) -> 0.05045 | N28: 29652.76192
B29: 2024 | D29: 0 | F29: =-'4. ICM_Assets_and_Rate_Base'!S357 -> 130614.5223 | H29: 783687.1336 | J29: 718379.8725 | L29: =AVERAGE('7. Rate Rider Revs'!C48:C51) -> 0.05145 | N29: 36960.64444
B30: 2025 | D30: 0 | F30: =-'4. ICM_Assets_and_Rate_Base'!U357 -> 134074.4687 | H30: 917761.6023 | J30: 850724.3679 | L30: =AVERAGE('7. Rate Rider Revs'!C52:C55) -> 0.03155 | N30: 26840.35381
B31: 2026 | D31: 0 | F31: =-'4. ICM_Assets_and_Rate_Base'!W357 -> 134074.4687 | H31: 1051836.071 | J31: 984798.8366 | L31: =AVERAGE('7. Rate Rider Revs'!C56:C59) -> 0.0255 | N31: 25112.37033
B35: Cumulative Interest to 2019 | N35: =SUM(N$23:N24) -> 1467.780694
B36: Cumulative Interest to 2020 | N36: =SUM(N$23:N25) -> 4161.705216
B37: Cumulative Interest to 2021 | N37: =SUM(N$23:N26) -> 6022.962158
B38: Cumulative Interest to 2022 | N38: =SUM(N$23:N27) -> 14777.40051
B39: Cumulative Interest to 2023 | N39: =SUM(N$23:N28) -> 44430.16243
B40: Cumulative Interest to 2024 | N40: =SUM(N$23:N29) -> 81390.80687
B41: Cumulative Interest to 2025 | N41: =SUM(N$23:N30) -> 108231.1607
B42: Cumulative Interest to 2026 | N42: =SUM(N$23:N31) -> 133343.531

Sheet 9. IRR
B14: This worksheet calculates the ICM Incremental Revenue Requirement.
B17: Sheet 9: ICM Incremental Revenue Requirement
G20: 2018 | I20: 2019 | K20: 2020 | M20: 2021 | O20: 2022 | Q20: 2023 | S20: 2024 | U20: 2025 | W20: 2026 | Z20: Total
C22: Deferred and forecasted ICM Incremental Revenue Requirement (from Sheet 6) | I22: ='6. ICMIRR '!$F$88/12*10 -> 328204.3137 | K22: ='6. ICMIRR '!$F$88 -> 393845.1765 | M22: ='6. ICMIRR '!$F$88 -> 393845.1765 | O22: ='6. ICMIRR '!$F$88 -> 393845.1765 | Q22: ='6. ICMIRR '!$F$88 -> 393845.1765 | S22: ='6. ICMIRR '!$F$88 -> 393845.1765 | U22: ='6. ICMIRR '!$F$88 -> 393845.1765 | W22: ='6. ICMIRR '!$F$88 -> 393845.1765 | Z22: =SUM(G22:W22) -> 3085120.549
C24: Interest on Deferred and forecasted Amortization Expense (Sheet 8) | G24: ='8. Opex Interest Annual'!$N$23 -> 0 | I24: ='8. Opex Interest Annual'!$N$24 -> 1467.780694 | K24: ='8. Opex Interest Annual'!$N$25 -> 2693.924522 | M24: ='8. Opex Interest Annual'!$N$26 -> 1861.256942 | O24: ='8. Opex Interest Annual'!$N$27 -> 8754.438355 | Q24: ='8. Opex Interest Annual'!$N$28 -> 29652.76192 | S24: ='8. Opex Interest Annual'!$N$29 -> 36960.64444 | U24: ='8. Opex Interest Annual'!$N$30 -> 26840.35381 | W24: ='8. Opex Interest Annual'!$N$31 -> 25112.37033 | Z24: =SUM(G24:W24) -> 133343.531
C27: ICM Rate Rider Revenues (from Sheet 7) | G27: =SUM('7. Rate Rider Revs'!K24:K35) -> 0 | I27: =SUM('7. Rate Rider Revs'!K36:K47) -> 556136.04 | K27: =SUM('7. Rate Rider Revs'!K48:K59) -> 655766.08 | M27: =SUM('7. Rate Rider Revs'!K60:K71) -> 652988.93 | O27: =SUM('7. Rate Rider Revs'!K72:K83) -> 654803.27 | Q27: =SUM('7. Rate Rider Revs'!K84:K95) -> 650905.3 | S27: =SUM('7. Rate Rider Revs'!K96:K107) -> 655011.46 | U27: =SUM('7. Rate Rider Revs'!K108:K119) -> 662204.81 | W27: =SUM('7. Rate Rider Revs'!K120:K131) -> 658111.1575 | Z27: =SUM(G27:W27) -> 5145927.048
C29: ICM Rate Rider Interest (from Sheet 7) | G29: =SUM('7. Rate Rider Revs'!M27:M35) -> 0 | I29: =SUM('7. Rate Rider Revs'!M36:M47) -> 4504.66 | K29: =SUM('7. Rate Rider Revs'!M48:M59) -> 10442.5 | M29: =SUM('7. Rate Rider Revs'!M60:M71) -> 8592.72 | O29: =SUM('7. Rate Rider Revs'!M72:M83) -> 43768.56 | Q29: =SUM('7. Rate Rider Revs'!M84:M95) -> 142579.61 | S29: =SUM('7. Rate Rider Revs'!M96:M107) -> 177795.59 | U29: =SUM('7. Rate Rider Revs'!M108:M119) -> 129706.73 | W29: =SUM('7. Rate Rider Revs'!M120:M131) -> 122094.77 | Z29: =SUM(G29:W29) -> 639485.14
C31: Net Deferred Revenue Requirement | G31: =(G22+G24)-(G27+G29) -> 0 | I31: =(I22+I24)-(I27+I29) -> -230968.6056 | K31: =(K22+K24)-(K27+K29) -> -269669.479 | M31: =(M22+M24)-(M27+M29) -> -265875.2166 | O31: =(O22+O24)-(O27+O29) -> -295972.2152 | Q31: =(Q22+Q24)-(Q27+Q29) -> -369986.9716 | S31: =(S22+S24)-(S27+S29) -> -402001.2291 | U31: =(U22+U24)-(U27+U29) -> -371226.0097 | W31: =(W22+W24)-(W27+W29) -> -361248.3807 | Z31: =(Z22+Z24)-(Z27+Z29) -> -2566948.107
